{"text_format":"1","workbook":"xlsx","n_sheets":21,"sheets":["Cover Page","Contents","Facility Info","Operational Data","Operational Summary","Perf. Form 1","Energy Form 1","Permit Compliance","Improvements","Public Liasion","Residue Quality ","Water","Air (periodic)","Air (CEMS)","HCl","SO2","NOx","TOC","Particulates","CO 95% 10 min","NH3"],"not_rendered":{"charts":7,"images":0,"macros":1,"external_links":0,"defined_names":21,"comments":0,"pivot_tables":0},"unopened":[],"bounds":{"document_bytes":16777216,"sheet_cells":100000,"rows_first":2000,"rows_last":500,"rows_between":2000,"halvings":0,"cell_chars":16384,"cell_head_chars":4096},"cells_cut":0,"cells_raw":0,"read":"whole","date_system":"1900"}

{"sheet":"Cover Page","index":0,"n_rows":53,"n_cols":14,"rows_kept":53,"cut":false,"hidden":false,"merged":[[48,2,48,3],[48,6,48,8],[52,2,52,3],[36,1,36,8],[40,2,40,8],[42,2,42,4],[44,2,44,4],[46,2,46,3],[46,6,46,8],[13,13,18,15],[34,1,34,8],[0,3,5,6],[7,1,23,8],[28,1,28,8],[30,1,30,8],[32,1,32,8]]}
[null,null,null,"North Midlands Operations Ltd"]
[null,null,null,null,null,null,null,null,null,null,null,null,null,"Version 20.5 "]
[]
[]
[]
[]
[]
[null,"Add photo"]
[]
[]
[]
[]
[null,null,null,null,null,null,null,null,null,null,null,null,null,"Notes:"]
[null,null,null,null,null,null,null,null,null,null,null,null,null,"This template may require adjustments by individual operators to meet specific reporting requirements as defined in the site Permit(s)"]
[]
[]
[]
[]
[]
[]
[]
[]
[]
[]
[]
[]
[]
[]
[null,"Annual Performance Report 2022"]
[]
[null,"Permit EPR/HP3349QK"]
[]
[null,"Wolverhampton Energy from Waste Facility"]
[]
[null,"North Midlands Operations Limited"]
[]
[]
[]
[null,"Year:",2022]
[]
[null,"Address:","Crown Street, Wolverhampton, WV1 1QB"]
[]
[null,"Tel: ","01179 372 811"]
[]
[null,"Email: ","emily.hingston@sol-environment.co.uk"]
[]
[null,"Prepared by:","Emily Hingston",null,null,"Position:","Consultant"]
[]
[null,"Approved by:","Kate Harrop",null,null,"Position:","Quality & Environment Manager"]
[]
[null,"Version:",1]
[]
[null,"Issue Date:","2023-01-31"]

{"sheet":"Contents","index":1,"n_rows":44,"n_cols":11,"rows_kept":44,"cut":false,"hidden":false,"merged":[[43,0,46,9],[36,1,36,6],[37,1,37,6],[38,1,38,6],[39,1,39,6],[40,1,40,6],[41,1,41,6],[35,1,35,6],[21,1,21,6],[22,1,22,6],[23,1,23,6],[26,1,26,6],[27,1,27,6],[28,1,28,6],[29,1,29,6],[30,1,30,6],[31,1,31,6],[34,1,34,6],[20,1,20,6],[9,1,9,6],[10,1,10,6],[11,1,11,6],[12,1,12,6],[13,1,13,6],[14,1,14,6],[15,1,15,6],[16,1,16,6],[17,1,17,6],[18,1,18,6],[19,1,19,6],[4,10,7,14],[8,1,8,6],[3,1,3,6],[4,1,4,6],[5,1,5,6],[6,1,6,6],[7,1,7,6]]}
[{"$f":"+'Cover Page'!$B$29","v":"Annual Performance Report 2022"},null,null,null,{"$f":"+'Cover Page'!$B$33","v":"Wolverhampton Energy from Waste Facility"}]
[]
["Contents",null,null,null,null,null,null,null,null,null,"Notes:"]
["Section","Subject",null,null,null,null,null,"Page ",null,null,"Section references and Page nos. to be inserted"]
[null,"Facility Information",null,null,null,null,null,4,null,null,"Sections and Subjects may require adjustment by individual operators to meet specific reporting requirements as defined in the sites Permit(s)"]
[null,"Operational Summary",null,null,null,null,null,6]
[null,"Operational Data",null,null,null,null,null,5]
[null,"Performance Form 1",null,null,null,null,null,7]
[null,"Energy Form 1",null,null,null,null,null,8]
[null,"Permit Compliance",null,null,null,null,null,9]
[null,"Improvements",null,null,null,null,null,11]
[null,"Public Liasion",null,null,null,null,null,12]
[null,"Residue Quality - Optional",null,null,null,null,null,13]
[null,"Emissions to Water",null,null,null,null,null,14]
[null,"Emissions to Air (periodically monitored)",null,null,null,null,null,15]
[null,"Emissions to Air (continuously monitored)",null,null,null,null,null,16]
[null,"Hydrogen Chloride emissions",null,null,null,null,null,17]
[null,"Sulphur Dioxdie emsissions",null,null,null,null,null,18]
[null,"Oxides of Notrigen emissions",null,null,null,null,null,19]
[null,"Total Organic Carbon emissions",null,null,null,null,null,20]
[null,"Particulate Matter emissions",null,null,null,null,null,21]
[null,"Carbon Monoxide emissions",null,null,null,null,null,22]
[null,"Ammonia emissions",null,null,null,null,null,23]
[]
[]
["Version Control"]
["Section","Information",null,null,null,null,null,"Date"]
[]
[]
[]
[]
[]
[]
["Distribution"]
["Copy","North Midlands Operations Limited",null,null,null,null,null,"No."]
[]
[]
[]
[]
[]
[]
[]
[]
["This report is required under the Industrial Emissions Directive’s Article 55(2) requirements on reporting and public information on waste incineration plants and co-incineration plants, which require the operator to produce an annual report on the functioning and monitoring of the plant and make it available to the public. "]

{"sheet":"Facility Info","index":2,"n_rows":22,"n_cols":11,"rows_kept":22,"cut":false,"hidden":false,"merged":[[4,0,17,8],[4,10,13,13],[21,10,30,13],[21,0,77,8]]}
[{"$f":"+'Cover Page'!$B$29","v":"Annual Performance Report 2022"},null,null,null,{"$f":"+'Cover Page'!$B$33","v":"Wolverhampton Energy from Waste Facility"}]
[]
["Plant Description and Design",null,null,null,null,null,null,null,null,null,"Notes:"]
[]
["The Wolverhampton Energy from Waste Facility utilises municipal waste to recover energy in the form of electricity and steam for export to the local grid. The facility processes approximately 118,000 tpa of waste in two combustion streams which operate using moving grate furnace systems with a combined capacity of up to 14 tonnes per hour.  The heat produced during the incineration process is converted to electrical energy by generating steam in high-pressure boilers and expanding the steam through a steam turbine.  When operating at full load, the plant will typically generate around 8 MW of electricity and, after satisfying its own power needs, exports approximately 7.1 MW of electricity to the grid. \n\nThe installation provides a sustainable method of waste disposal and recovery, predominantly for the area within the administrative boundary of Wolverhampton Metropolitan Borough Council, with smaller quantities of wastes accepted, where capacity and demand exists, from other local authorities within the general vicinity of the plant.\n\nThe process includes waste reception and storage, combustion, waste heat boilers, abatement of flue gases and the onsite storage of residues produced, namely IBA and APCr.\n\nThe plant is operated in accordance with its Environmental Management System which is designed to meet the requirements of ISO14001:2004.  ",null,null,null,null,null,null,null,null,null,"Include summary of plant design, design capacity, no. of combustion lines, electrical and heat capacity and any other general information that describes the facility, its location and purpose "]
[]
[]
[]
[]
[]
[]
[]
[]
[]
[]
[]
[]
[]
[]
["Summary of Operational Processes and Procedures"]
[]
["The principle components of the process comprise the following:\n\nWaste Acceptance and Reception: All waste is delivered directly into the fuel storage building and unloaded into the storage bunkers. When required, the waste is discharged onto the feedstock feed system, which delivers the waste into the furnaces via feed hoppers. All waste is accepted in accordance to the sites waste acceptance procedures.\n\nCombustion: The feed ram ensures that material falls into the moving grate within the furnace in a controlled manner.  The moving grate ensures the waste is agitated as it progresses down the furnace to the ash discharge.  Primary air is introduced beneath the grate causing the waste to go through a series of drying and burning areas.  Secondary air is introduced from above the grate for combustion control.  Auxiliary oil fired burners are located in the combustion chamber for start up and temperature control.  The produced gases are resident in the combustion chamber at the 850C for at least 2seconds before transfer to the boiler , economiser and abatement plant. \n\nElectricity Generation: Each furnace is equipped with a 2-pass water tube boiler raising steam at 45 bar and 355C. The steam then passes to a Steam Turbine and Generator, which exports electricity to the grid.\n\nFlue-Gas Cleaning: Flue gas cleaning and pollution control consists of urea injection for De-NOx, semi-dry scrubbing using milk of lime spray for acid gas neutralisation and activated carbon powder injection for absorption and removal of heavy metals, dioxins, VOCs and other harmful substances.  Bag filters remove particulates prior to emission to atmosphere via a single 76m high stack.\n\nProcess effluent is treated onsite in the effluent treatment plant and recycled through the process. Any surplus is discharged to foul sewer. \n\nThe Plant is regulated under the terms of a Permit issued by the Environment Agency (reference HP3349QK) which contains conditions to ensure that the requirements of the Waste Incineration Directive are incorporated and will be met. \nNorth Midlands Operations Ltd operates all of its sites under an Integrated Management System certified to ISO 14001:2015 (environmental management), ISO 9001:2015 (quality management), and ISO 45001:2018 (health and safety management).  \nIn terms of plant operation, the incineration processes have been designed against the background of a detailed assessment of the prevailing environmental conditions at the site location, and are based upon the Best Available Technology (BAT) as detailed both in the original Authorisation application and the application for the Permit issued under the Environmental Permitting (England and Wales) Regulations (As Amended).  These include, but are not limited to, the following:\n• Well proven process plant developed specifically for incineration of municipal solid wastes\n• Efficient, comprehensive process control and monitoring systems to ensure optimum conditions for complete combustion of the wastes and to minimise emissions from the processes\n• Operations confined within buildings under slight negative pressure in order to contain and minimise emissions such as dust and odour\n• Qualified and experienced operating and maintenance personnel to implement procedures to ensure that the required high standards are maintained. Operating and Maintenance Procedures are established according to an internationally recognised system of quality assurance\n• Multi-stage high efficiency flue gas cleaning systems comprising deNOx Selective Non-Catalytic Reduction (SNCR) for the removal of oxides of nitrogen, activated carbon and lime semi-dry acid gas scrubbing for controlling acid gas, dioxins/furans and mercury emissions\n• Final stage flue gas abatement for particulate materials using fabric filtration\n• Residues from the combustion process and from the flue gas cleaning system disposed of by approved means, maximising recycling wherever possible\n• Waste water from the process is neutralised and recycled as far as is practicable to minimise the quantities released to sewers\n• Provision of bunds or double skinned vessels for storage of fuel and chemicals in order to prevent accidental and inappropriate discharge to the public sewers and watercourse. \n• The site is currently working towards compliance with the new Waste Incineration BAT Conclusions, to which compliance is required by 03.12.2023.",null,null,null,null,null,null,null,null,null,"Include summary of key processes and procedures such as (but not limited to); waste reception, control rooms, grate, bed and boiler, energy & heat  generation, cooling systems, residue management, emission controls, health and safety systems, maintenance"]

{"sheet":"Operational Data","index":3,"n_rows":58,"n_cols":11,"rows_kept":58,"cut":false,"hidden":false,"merged":[[5,10,6,10],[7,10,15,10],[30,1,32,1],[27,2,27,5],[27,6,27,7],[3,1,3,2],[7,1,16,1],[20,1,23,1],[25,1,26,1],[49,0,50,0]]}
[{"$f":"+'Cover Page'!$B$29","v":"Annual Performance Report 2022"},null,null,null,"Wolverhampton EfW"]
[]
["Operational Data",null,null,null,null,null,null,null,null,null,"Notes:"]
["Plant Size",118000,null,"tonnes pa",null,"MWth",8,"MWe",null,null,"* - RDF to include SRF "]
["No. of combustion lines",2,null,"No. of Turbines:",null,1,null,null,null,null,"** - CHP plants only"]
[null,null,null,null,null,null,null,null,null,null,"2020 updates include;  heat in MWh, water in Litres, NCV in MJ/kg"]
["Waste types received","Unit","Q1","Q2","Q3","Q4","Year Total","%"]
["Household / Local Authority","tonnes",28056,29182,22671,27242,{"$f":"SUM(C8:F8)","v":107151},{"$f":"IF(G8>0,G8/$G$15,\"-\")","v":0.96633418707838825},null,null,"Availabiity Definition: 'the availability of a line is to be calculated by the number of hours the line reported Continuously Monitored emission levels to the Regulator through the calendar year divided by the total number of hours in that year. \nThe overall plant availability is calculated as the Mean of all lines in the plant. For clarity this includes periods of Other Than Normal Operating Conditions (OTNOC) and abnormal operation.'  \n\nRationale: The primary function of an Energy from Waste facility is the disposal of waste. It follows therefore that the availability of a plant is determined by the period of time a facility spends undertaking this activity."]
["Commercial & Industrial ",null,828,1594,557,754,{"$f":"SUM(C9:F9)","v":3733},3.3665812921611776E-2]
["Hazardous ",null,0,0,0,0,0,"-"]
["Clinical",null,0,0,0,0,0,"-"]
["Waste wood (biomass) ",null,0,0,0,0,0,"-"]
["Refuse Derived Fuel * - H'hold/LA",null,0,0,0,0,{"$f":"SUM(C13:F13)","v":0},"-"]
["Refuse Derived Fuel *  - C&I",null,0,0,0,0,0,"-"]
["Total waste received",null,{"$f":"SUM(C8:C14)","v":28884},{"$f":"SUM(D8:D14)","v":30776},{"$f":"SUM(E8:E14)","v":23228},{"$f":"SUM(F8:F14)","v":27996},{"$f":"SUM(G8:G14)","v":110884},1]
["Rejected Waste ",null,null,null,null,null,{"$f":"SUM(C16:F16)","v":0},{"$f":"IF(G16>0,G16/$G$15,\"-\")","v":"-"}]
["Unprocessed waste transferred out",null,null,null,null,null,{"$f":"SUM(C17:F17)","v":0},{"$f":"IF(G17>0,G17/$G$15,\"-\")","v":"-"}]
["Total waste combusted",null,28553.05,29650.82,23112.92,28599.86,{"$f":"SUM(C18:F18)","v":109916.65},{"$f":"IF(G18>0,G18/$G$15,\"-\")","v":0.99127601818116229}]
[]
["Energy Useage / Export","Unit","Q1","Q2","Q3","Q4","Year Total","KWh/te"]
["Power Generated","MWh",13300,12801,9117,10451,{"$f":"SUM(C21:F21)","v":45669},{"$f":"IF(G21>0,G21*1000/$G$18,\"-\")","v":415.48755352351077}]
["Power Exported",null,10978.9,10441,7277.7,8482.7999999999993,{"$f":"SUM(C22:F22)","v":37180.400000000001},{"$f":"IF(G22>0,G22*1000/$G$18,\"-\")","v":338.25994514934729}]
["Power Used on site",null,2321.1,2360,1839.3,1968.2,{"$f":"SUM(C23:F23)","v":8488.6},{"$f":"IF(G23>0,G23*1000/$G$18,\"-\")","v":77.227608374163523}]
["Power Imported",null,41.1,7.3,166.7,346.1,561.20000000000005,{"$f":"IF(G24>0,G24*1000/$G$18,\"-\")","v":5.1056869000283402}]
["Parasitic Load","%",{"$f":"IF(C21>0,1-C22/(C21+C24),\"-\")","v":0.17706186146569625},{"$f":"IF(D21>0,1-D22/(D21+D24),\"-\")","v":0.18482546473770911},{"$f":"IF(E21>0,1-E22/(E21+E24),\"-\")","v":0.21607764145760855},{"$f":"IF(F21>0,1-F22/(F21+F24),\"-\")","v":0.21434459252947557},{"$f":"IF(G21>0,1-G22/(G21+G24),\"-\")","v":0.19575515572071922}]
["Thermal Energy Produced **","MWh",null,null,null,null,{"$f":"SUM(C26:F26)","v":0},{"$f":"IF(G26>0,G26*1000/$G$18,\"-\")","v":"-"}]
["Thermal Energy Exported **",null,null,null,null,null,0,{"$f":"IF(G27>0,G27*1000/$G$18,\"-\")","v":"-"}]
["R1 value",null,null,null,null,null,"Design / Operational / n/a"]
[]
["Waste Disposal & Recovery","Unit","Q1","Q2","Q3","Q4","Year Total","% inputs"]
["APC Residues - produced","tonnes",882.58,780.74,645.32000000000005,755.72,{"$f":"SUM(C31:F31)","v":3064.3600000000006},{"$f":"IF(G31>0,G31/$G$15,\"-\")","v":2.7635727426860508E-2}]
["IBA - produced",null,4601.62,5015.47,3914.48,444.79,13976.36,{"$f":"IF(G32>0,G32/$G$15,\"-\")","v":0.12604487572598391}]
["Metals recycling",null,381.58,459.4,298.38,400.96,{"$f":"SUM(C33:F33)","v":1540.3200000000002},{"$f":"IF(G33>0,G33/$G$15,\"-\")","v":1.3891273763572744E-2}]
[]
["Raw Material Usage","North Midlands Operations Limited","Q1","Q2","Q3","Q4","Year Total","kg or Ltr /te"]
["Mains Water","M3",21891,21716,19794,24266,{"$f":"SUM(C36:F36)","v":87667},{"$f":"IF(G36>0,G36/$G$15,\"-\")","v":0.79061902528768802}]
["Other Water","ltrs",0,0,0,0,0,{"$f":"IF(G37>0,G37/$G$15,\"-\")","v":"-"}]
["Ammonia","kgs",0,0,0,0,0,{"$f":"IF(G38>0,G38/$G$15,\"-\")","v":"-"}]
["Urea","kgs",70000,69000,38000,37000,{"$f":"SUM(C39:F39)","v":214000},{"$f":"IF(G39>0,G39/$G$15,\"-\")","v":1.929944807185888}]
["Activated Carbon","kgs",3000,2000,4000,6000,15000,{"$f":"IF(G40>0,G40/$G$15,\"-\")","v":0.13527650517658094}]
["Lime / hydrated lime","kgs",256860,200620,167520,200760,825760,7.4470617943075643]
["Fuel oil","ltrs",30060,21830,35880,31140,118910,1.0723819487031492]
["Gas","cf",null,0,0,0,0,"-"]
["HCL","ltrs",3142,3551,4258,4717,15668,0.14130081887377799]
["Caustic Soda","ltrs",3143,3119,3840,4252,14354,0.1294505970203095]
["O2 Reducer","ltrs",115.5,123,69,86.5,394,3.5532628693048592E-3]
["Phosphate","ltrs",88.5,38,50.5,52,229,2.0652213123624687E-3]
[null,null,1]
["Summary ","Line/Unit","Q1","Q2","Q3","Q4","Year Total",null,null,"Hrs in year "]
["Availability of waste combustion by line, hrs",1,2030,2183,1798,1960,{"$f":"SUM(C50:F50)","v":7971},{"$f":"(G50)/J50","v":0.90993150684931512},null,8760]
[null,2,2056.5,2094,1688,2036.5,7875,{"$f":"(G51)/J50","v":0.89897260273972601}]
["Overall Availability, mean avg. of all lines, hrs",null,{"$f":"AVERAGE(C50:C51)","v":2043.25},{"$f":"AVERAGE(D50:D51)","v":2138.5},1743,1998.25,{"$f":"AVERAGE(G50:G51)","v":7923},{"$f":"(G52)/J50","v":0.90445205479452051}]
["Hours of turbine operations, hrs",1,2092,2176,1818.5,1817.5,7904,{"$f":"(G53)/J50","v":0.90228310502283104}]
["Hours of heat / steam export",null,null,null,null,null,0,{"$f":"IF(B54>0,#REF!/J50,\"n/a\")","v":"n/a"}]
["Net Calorific Value of waste","MJ/kg",24.67,24.77,26.09,23.95,null,"-"]
["Abnormal Events","qty.",2,1,0,0,3,{"$f":"IF(G56>0,\"yes\",\"no\")","v":"yes"}]
["Abnormal operation","hours",6,1,0,0,7,{"$f":"+(G57)/J50","v":7.9908675799086762E-4}]
["Permit Breaches","qty.",5,2,1,10,18,{"$f":"IF(G58>0,\"yes\",\"no\")","v":"yes"}]

{"sheet":"Operational Summary","index":4,"n_rows":31,"n_cols":11,"rows_kept":31,"cut":false,"hidden":false,"merged":[[4,0,26,8],[30,0,51,8],[4,10,13,13],[30,10,39,13]]}
[{"$f":"+'Cover Page'!$B$29","v":"Annual Performance Report 2022"},null,null,null,{"$f":"'Operational Data'!E1","v":"Wolverhampton EfW"}]
[]
["Summary of Plant Operations and Maintenance during the reporting year",null,null,null,null,null,null,null,null,null,"Notes:"]
[]
["• In 2022 tube leaks have been the main reason of boiler unavailability in Wolverhampton followed by common parts issues. The overall boiler availability for the year was 90%.\nThe turbine unavailability has been mainly impacted by boilers and by Western Power export disruption. The overall turbine availability for the year was 90%.\n• Extensive scheduled maintenance was undertaken at the plants annual planned shutdown period:\no Boilers thorough inspections performed. Thin pipes and worn refractory renewed.\no Soot blowers and air hammers inspected and maintained. \no Combustion system thoroughly inspected and worn parts replaced. \no Auxiliary burners inspected and serviced. \no Hydraulic packs serviced.\no Both boiler pressure relief valves, as well as common vessels and main valves inspected / serviced.\no Bag house filters and scrubbers cleaned, inspected and repaired where needed. The program of bags replacement continued.\no Ducting and expansion joints inspections and repairs made. \no Fly ash and bottom ash conveyors inspected and serviced. \no Lime, urea and activated carbon systems cleaned and inspected. \no Main fans and pumps inspected and serviced. The main electrical motors have been tested. \no Main instrumentation calibrated. \no Turbine, generator and gearbox serviced.\no Turbine blading borescope inspection carried out. \no Generator electrical test performed. \no Main electrical systems inspected and tested. ",null,null,null,null,null,null,null,null,null,"Include summary of key operational and/or maintenance activity undertaken in the year, such as any major component upgrades and/or replacements "]
[]
[]
[]
[]
[]
[]
[]
[]
[]
[]
[]
[]
[]
[]
[]
[]
[]
[]
[]
[]
[]
[]
[]
["Summary of Residue Handling for the reporting year"]
[]
["There are two main sources of residue that arise from the operation of the plant;  Incinerator Bottom ash (IBA) (which also includes ferrous metals discharged within the ash), and residues from the flue gas treatment system - known as Air Pollution Control residue (APCr).\n\nResidues from the flue gas treatment process (APCr) are discharged into an enclosed system which feed into double-skinned heavy-duty bags prior to removal from site for controlled treatment and disposal.  These residues account for around 5% of the total weight of all refuse processed by the facility.\n\nThe bottom ash produced by the site represents around 10% of the original volume of the refuse processed, and around 20% of its weight.  Bottom ash residues are discharged from the lower end of each grate into a water filled ash discharger, where it is quenched and then ejected onto a conveyor system. Larger items are screened out and ferrous metals are removed via magnetic separation.  \nThe resulting material is stored in the storage bunkers prior to removal from site for recycling - the storage capacity for bottom ash residues and separated ferrous metals is sufficient to ensure 4 days storage. Collections for delivery to further processing or treatment sites are made on Mondays to Fridays and are scheduled to ensure sufficient storage capacity is maintained at all times. Collections are available at weekends if operational conditions require this facility.\nBottom ash is now widely used in the UK and Europe as a substitute for valuable primary aggregate materials in the construction of roads and embankments.  Bottom ash from North Midlands Operations Ltd is currently being reprocessed, with additional ferrous and trace metals being removed, and the remaining material being further processed into usable aggregate in a zero to landfill process.",null,null,null,null,null,null,null,null,null,"Include in here a summary of residue handling regimes and destinations "]

{"sheet":"Perf. Form 1","index":5,"n_rows":54,"n_cols":10,"rows_kept":54,"cut":false,"hidden":false,"merged":[[47,0,47,1],[49,0,49,9],[50,0,51,9],[38,0,38,9],[39,0,40,9],[43,0,43,1],[43,2,43,9],[45,0,45,1],[46,0,46,1],[36,0,36,3],[36,4,36,5],[36,7,36,8],[37,0,37,3],[37,4,37,5],[37,7,37,8],[34,0,34,3],[34,4,34,5],[34,7,34,8],[35,0,35,3],[35,4,35,5],[35,7,35,8],[31,0,31,3],[31,7,31,8],[32,0,32,3],[32,4,32,5],[32,7,32,8],[33,0,33,3],[33,4,33,5],[33,7,33,8],[23,0,23,3],[23,4,23,5],[23,6,23,7],[23,8,23,9],[25,0,25,9],[26,0,28,9],[21,0,21,1],[21,2,21,3],[21,4,21,5],[21,6,21,7],[21,8,21,9],[22,0,22,3],[22,4,22,5],[22,6,22,7],[22,8,22,9],[19,0,19,1],[19,2,19,3],[19,4,19,5],[19,6,19,7],[19,8,19,9],[20,0,20,1],[20,2,20,3],[20,4,20,5],[20,6,20,7],[20,8,20,9],[17,0,17,1],[17,2,17,3],[17,4,17,5],[17,6,17,7],[17,8,17,9],[18,0,18,1],[18,2,18,3],[18,4,18,5],[18,6,18,7],[18,8,18,9],[15,0,15,1],[15,2,15,3],[15,4,15,5],[15,6,15,7],[15,8,15,9],[16,0,16,9],[13,0,13,1],[13,2,13,3],[13,4,13,5],[13,6,13,7],[13,8,13,9],[14,0,14,3],[14,4,14,5],[14,6,14,7],[14,8,14,9],[11,0,11,1],[11,2,11,3],[11,4,11,5],[11,6,11,7],[11,8,11,9],[12,0,12,1],[12,2,12,3],[12,4,12,5],[12,6,12,7],[12,8,12,9],[9,0,9,9],[10,0,10,1],[10,2,10,3],[10,4,10,5],[10,6,10,7],[10,8,10,9],[2,0,2,4],[2,6,2,8],[3,1,3,4],[5,3,5,4],[5,6,5,7],[8,0,8,1],[8,2,8,3],[8,4,8,5],[8,6,8,7],[8,8,8,9]]}
[{"$f":"+'Cover Page'!C39","v":2022}," Annual Reporting Performance Form 1"]
[]
[{"$f":"+'Cover Page'!B31","v":"Permit EPR/HP3349QK"},null,null,null,null,"Operator: ",{"$f":"+'Cover Page'!B37:I37","v":0}]
["Facility:",{"$f":"+'Cover Page'!B33:I33","v":"Wolverhampton Energy from Waste Facility"},null,null,null,"Form:","Performance 1"]
[]
["Reporting  Period from: ",null,null,"2022-01-01",null,"to:","2022-12-31"]
[]
[{"$f":"+A1","v":2022},"Annual Reporting of Waste Disposal and Recovery"]
["Waste Description",null,"Disposal Route(s)",null,"Disposal Tonnes",null,"Recovery Tonnes",null,"% / tonne of waste incinerated"]
["1) Hazardous Wastes"]
["APC Residues",null,null,null,{"$f":"'Operational Data'!G31","v":3064.3600000000006},null,0,null,{"$f":"IF((E11+G11)>0,(E11+G11)/'Operational Data'!$G$18, \"-\")","v":2.7878942817125527E-2}]
["IBA",null,null,null,0,null,0,null,{"$f":"IF((E12+G12)>0,(E12+G12)/'Operational Data'!$G$18, \"-\")","v":"-"}]
[null,null,null,null,null,null,null,null,{"$f":"IF((E13+G13)>0,(E13+G13)/'Operational Data'!$G$18, \"-\")","v":"-"}]
[null,null,null,null,null,null,null,null,{"$f":"IF((E14+G14)>0,(E14+G14)/'Operational Data'!$G$18, \"-\")","v":"-"}]
["Total Hazardous Waste",null,null,null,{"$f":"SUM(E11:F14)","v":3064.3600000000006},null,{"$f":"SUM(G11:H14)","v":0},null,{"$f":"IF((E15+G15)>0,(E15+G15)/'Operational Data'!$G$18, \"-\")","v":2.7878942817125527E-2}]
[]
["2) Non-Hazardous Wastes"]
["IBA",null,null,null,0,null,{"$f":"'Operational Data'!G32","v":13976.36},null,{"$f":"IF((E18+G18)>0,(E18+G18)/'Operational Data'!$G$18, \"-\")","v":0.12715416636151122}]
["Ferrous Metal",null,null,null,0,null,{"$f":"'Operational Data'!G33","v":1540.3200000000002},null,{"$f":"IF((E19+G19)>0,(E19+G19)/'Operational Data'!$G$18, \"-\")","v":1.4013527522900309E-2}]
["Process Water",null,null,null,0,null,0,null,{"$f":"IF((E20+G20)>0,(E20+G20)/'Operational Data'!$G$18, \"-\")","v":"-"}]
[null,null,null,null,null,null,null,null,{"$f":"IF((E21+G21)>0,(E21+G21)/'Operational Data'!$G$18, \"-\")","v":"-"}]
[null,null,null,null,null,null,null,null,{"$f":"IF((E22+G22)>0,(E22+G22)/'Operational Data'!$G$18, \"-\")","v":"-"}]
["Total Non-Hazardous Waste",null,null,null,{"$f":"SUM(E18:F22)","v":0},null,{"$f":"SUM(G18:H22)","v":15516.68},null,{"$f":"IF((E23+G23)>0,(E23+G23)/'Operational Data'!$G$18, \"-\")","v":0.14116769388441153}]
["TOTAL WASTE",null,null,null,{"$f":"+E23+E15","v":3064.3600000000006},null,{"$f":"+G23+G15","v":15516.68},null,{"$f":"IF((E24+G24)>0,(E24+G24)/'Operational Data'!$G$18, \"-\")","v":0.16904663670153705}]
[]
["Operator’s comments :"]
[]
[]
[]
[]
[{"$f":"+A1","v":2022},"Annual Reporting of Water and Other Raw Material Usage"]
["Raw Material",null,null,null,"Usage",null,"Unit","Specific Useage",null,"Unit"]
["Mains Water",null,null,null,{"$f":"+'Operational Data'!G36","v":87667},null,"m3",{"$f":"IF(E33>0,E33/'Operational Data'!$G$18,\"-\")","v":0.79757707317317261},null,"m3/te"]
["Total Water",null,null,null,{"$f":"+'Operational Data'!G37+'Operational Data'!G36","v":87667},null,"m3",{"$f":"IF(E34>0,E34/'Operational Data'!$G$18,\"-\")","v":0.79757707317317261},null,"m3/te"]
["Urea / Ammonia",null,null,null,{"$f":"'Operational Data'!G39","v":214000},null,"kg",{"$f":"IF(E35>0,E35/'Operational Data'!$G$18,\"-\")","v":1.9469297872524318},null,"kg/te"]
["Activated Carbon",null,null,null,{"$f":"+'Operational Data'!G40","v":15000},null,"kg",{"$f":"IF(E36>0,E36/'Operational Data'!$G$18,\"-\")","v":0.13646704116255362},null,"kg/te"]
["Lime / hydrated lime / Sodium Bicarb.",null,null,null,{"$f":"+'Operational Data'!G41","v":825760},null,"kg",{"$f":"IF(E37>0,E37/'Operational Data'!$G$18,\"-\")","v":7.5126015940260196},null,"kg/te"]
[]
["Operator’s comments :"]
[]
[]
[]
[{"$f":"+A31","v":2022},"Annual Reporting of other performance indicators "]
["Parameter",null,"Results by Line"]
[null,null,"A1","A2",null,null,null,null,"Turbine 1"]
["Operating hours for the year, hours",null,{"$f":"'Operational Data'!G50","v":7971},{"$f":"'Operational Data'!G51","v":7875},null,null,null,null,{"$f":"'Operational Data'!G53","v":7904}]
["Number of periods of abnormal operation, qty.",null,2,1]
["Cumulative hours of abnormal operation for this year, hours",null,3.5,3.5]
[]
["Operator’s comments :"]
[]
[]
[]
["Signed: ",null,null,null,null,null,"Date:"]

{"sheet":"Energy Form 1","index":6,"n_rows":35,"n_cols":7,"rows_kept":35,"cut":false,"hidden":false,"merged":[[15,0,15,2],[15,3,15,4],[15,6,15,8],[17,0,17,8],[18,0,24,8],[13,0,13,2],[13,3,13,4],[13,6,13,8],[14,0,14,2],[14,3,14,4],[14,6,14,8],[11,0,11,2],[11,3,11,4],[11,6,11,8],[12,0,12,2],[12,3,12,4],[12,6,12,8],[9,0,9,2],[9,3,9,4],[9,6,9,8],[10,0,10,2],[10,3,10,4],[10,6,10,8],[2,6,2,8],[4,1,4,4],[6,3,6,4],[6,6,6,7],[8,0,8,2],[8,3,8,4],[8,6,8,8]]}
[{"$f":"+'Cover Page'!C39","v":2022}," Annual Reporting of Energy Usage/Export"]
[]
[{"$f":"+'Cover Page'!B31","v":"Permit EPR/HP3349QK"},null,null,null,null,"Operator: ",{"$f":"+'Cover Page'!B37:I37","v":0}]
[]
["Facility:",{"$f":"+'Cover Page'!B33:I33","v":"Wolverhampton Energy from Waste Facility"},null,null,null,"Form:","Energy 1"]
[]
["Reporting  Period from: ",null,null,{"$f":"+'Perf. Form 1'!D6:E6","v":"2022-01-01"},null,"to:",{"$f":"+'Perf. Form 1'!G6:H6","v":"2022-12-31"}]
[]
["Energy Source",null,null,"Energy Usage",null,"Unit","Specific Useage (KWh/tonne incinerated"]
["Electricity Produced",null,null,{"$f":"+'Operational Data'!G21","v":45669},null,"MWh",{"$f":"+'Operational Data'!H21","v":415.48755352351077}]
["Electricity Imported   ",null,null,{"$f":"+'Operational Data'!G24","v":561.20000000000005},null,"MWh",{"$f":"+'Operational Data'!H24","v":5.1056869000283402}]
["Electricity Exported",null,null,{"$f":"+'Operational Data'!G22","v":37180.400000000001},null,"MWh",{"$f":"+'Operational Data'!H22","v":338.25994514934729}]
["Gas Oil",null,null,null,null,"tonnes"]
["Steam/hot water exported",null,null,{"$f":"+'Operational Data'!G27","v":0},null,"GWh",{"$f":"+'Operational Data'!H27","v":"-"}]
[]
[]
[]
["Operator’s comments :"]
[]
[]
[]
[]
[]
[]
[]
[]
[]
[]
["Signed: ",null,null,null,null,null,"Date:"]
[]
[]
[]
[]
[]
[null,"North Midlands Operations Limited"]

{"sheet":"Permit Compliance","index":7,"n_rows":47,"n_cols":12,"rows_kept":47,"cut":false,"hidden":false,"merged":[[39,0,39,10],[18,0,18,10],[44,1,44,3],[44,4,44,6],[44,7,44,9],[40,1,40,3],[40,4,40,6],[40,7,40,9],[41,1,41,3],[41,4,41,6],[41,7,41,9],[36,1,36,3],[36,4,36,6],[36,7,36,9],[37,1,37,3],[37,4,37,6],[45,1,45,3],[45,4,45,6],[45,7,45,9],[42,1,42,3],[42,4,42,6],[42,7,42,9],[43,1,43,3],[43,4,43,6],[43,7,43,9],[37,7,37,9],[19,1,19,3],[19,4,19,6],[19,7,19,9],[20,1,20,3],[20,4,20,6],[20,7,20,9],[21,1,21,3],[22,1,22,3],[23,1,23,3],[24,1,24,3],[25,1,25,3],[26,1,26,3],[27,1,27,3],[28,1,28,3],[29,1,29,3],[14,0,14,1],[14,2,14,4],[14,5,14,8],[15,0,15,1],[16,2,16,4],[16,5,16,8],[15,2,15,4],[15,5,15,8],[16,0,16,1],[13,2,13,4],[7,0,7,1],[7,2,7,8],[8,0,8,1],[8,2,8,4],[8,5,8,8],[13,5,13,8],[34,1,34,3],[8,11,17,14],[46,4,46,8],[9,0,9,1],[9,2,9,4],[9,5,9,8],[10,0,10,1],[10,2,10,4],[10,5,10,8],[11,0,11,1],[11,2,11,4],[11,5,11,8],[12,0,12,1],[12,2,12,4],[12,5,12,8],[13,0,13,1],[30,1,30,3],[31,1,31,3],[32,1,32,3],[33,1,33,3],[28,7,28,8],[35,1,35,3],[25,7,25,8],[21,7,24,8],[34,4,34,6],[35,4,35,6],[29,4,33,6],[26,4,26,6],[27,4,27,6],[28,4,28,6],[25,4,25,6],[21,4,24,6],[34,7,34,8],[35,7,35,8],[29,7,33,8],[26,7,26,8],[27,7,27,8]]}
[{"$f":"+'Cover Page'!$B$29","v":"Annual Performance Report 2022"},null,null,null,{"$f":"+'Cover Page'!$B$33","v":"Wolverhampton Energy from Waste Facility"}]
[]
["Summary of Permit Compliance"]
[]
["Compliance with permit limits for continuously monitored pollutants"]
[]
["The plant met its emission limits as shown in the table below:"]
["Substance",null,"Percentage time compliant during operation",null,null,null,null,null,null,null,null,"Notes:"]
[null,null,"Half-hourly limit",null,null,"Daily limit",null,null,null,null,null,"Report to 2 decimal places, i.e. xx.xx%\n\nPlease provide a brief summary of each notification or non-compliance in the table (rather than just referring to notifications that were sent to the Regulator).  \n\n"]
["Particulates",null,0.99990000000000001,null,null,1]
["Oxides of nitrogen",null,1,null,null,1]
["Sulphur dioxide",null,1,null,null,1]
["Carbon monoxide",null,0.99970000000000003,null,null,0.99450000000000005]
["Total organic carbon",null,0.99970000000000003,null,null,0.99729999999999996]
["Hydrogen chloride",null,0.99980000000000002,null,null,0.99729999999999996]
["Hydrogen fluoride",null,1,null,null,1]
["Average",null,0.99990000000000001,null,null,0.99839999999999995]
[]
["Summary of any notifications or non-compliances under the permit"]
["Date","Summary of notification or non-compliance [including Line/Reference]",null,null,"Reason ",null,null,"Measures taken to prevent reoccurrence"]
["2022-02-18","HCL 1/2hrly ELV breach (71 mg/m3)",null,null,"Poor quality waste",null,null,"Increased waste mixing"]
["2022-03-03","HCL 1/2hrly ELV breach (147.21 mg/m3)",null,null,"Catastrophic failure of arch breaker in lime system rotary valve",null,null,"Repaired during September plant shut down"]
["2022-03-03","HCL Daily ELV breach (35.78 mg/m3)"]
["2022-03-03","HCL 1/2hrly ELV breach (74.76 mg/m3)"]
["2022-03-03","HCL Daily ELV breach (23.46 mg/m3)"]
["2022-04-21","HCL 1/2hrly ELV breach (61.89 mg/m3)",null,null,"Poor quality waste",null,null,"Increased waste mixing"]
["2022-06-28","Particulate 1/2 hrly ELV breach (90.78 mg/m3)",null,null,"Failure in duty dust probe",null,null,"Analyser changed to standby"]
["2022-07-20","CO 10 min ELV breach (8 x periods)",null,null,"Bang cleaning and soot blowing caused negative effect on combustion conditions",null,null,"Cleaning scheduled more appropriately"]
["2022-09-26","HCL Daily ELV breach (10.73 mg/m3)",null,null,"Boiler start up causing excessive HCL production, lime dosing initially too low during start up",null,null,"Increase in lime dosing"]
["2022-10-22","VOC 1/2 hrly ELV breach (21.33 mg/m3)",null,null,"Large waste build up on clicker resulting in waste not being efficiently moved and poor combustion",null,null,"Improved monitoring of grate thickness levels & adjustment of grate settings"]
["2022-10-23","VOC daily ELV breach (10.21 mg/m3)"]
["2022-10-23","CO daily ELV breach (84.87 mg/m3)"]
["2022-10-27","CO daily ELV breach (50.01 mg/m3)"]
["2022-10-31","VOC 1/2 hrly ELV breach (197.13 mg/m3)"]
["2022-11-01","North Midlands Operations Limited",null,null,"Blocked feeder hopper caused loss of waste onto grate and incomplete combustion",null,null,"Adjustment of grate settings"]
["2022-11-03","VOC 1/2 hrly ELV breach (38.11 mg/m3)",null,null,"Bang and reclean caused blockage in ash discharger",null,null,"Boiler shutdown"]
["2022-11-05","CO 10 min ELV breach ",null,null,"Poor quality waste",null,null,"Increase waste inspections"]
["2022-12-10","VOC 1/2 hrly ELV breach (24.03 mg/m3)",null,null,"Mechanical failure of feed table hydraulics system",null,null,"Boiler shutdown"]
[]
["Summary of any complaints received and actions to taken to resolve them."]
["Date","Summary of complaint [including Line/Reference]",null,null,"Reason *",null,null,"Measures taken to prevent reoccurrence"]
[null,"None received in 2022"]
[]
[]
[]
[]
[null,null,null,null,"* including whether substantiated by the operator or the EA"]

{"sheet":"Improvements","index":8,"n_rows":39,"n_cols":5,"rows_kept":39,"cut":false,"hidden":false,"merged":[[37,0,37,9],[38,0,47,9],[4,0,4,9],[5,0,13,9],[15,0,15,9],[16,0,24,9],[26,0,26,9],[27,0,35,9]]}
[{"$f":"+'Cover Page'!$B$29","v":"Annual Performance Report 2022"},null,null,null,{"$f":"+'Cover Page'!$B$33","v":"Wolverhampton Energy from Waste Facility"}]
[]
["Summary of Plant Improvements"]
[]
["Summary of any efficiency improvements that have been completed within the year."]
["• LED lamp replacement is an ongoing project.\n• The enhanced cleaning regime on the ACC is a consolidated practice (now 3 times/year). During the outage, the blades of the ACC fans are cleaned and the blade tip angles checked and adjusted.\n• The installation of a new condensate drainage system underneath the turbine has led to improved vacuum, thereby improving turbine efficiency.\n• FD fan 2 was fitted with a frequency converter during the 2022 outage."]
[]
[]
[]
[]
[]
[]
[]
[]
[]
["Summary of any permit improvement conditions that have been completed within the year and the resulting environmental benefits."]
["All permit improvement conditions were completed prior to 2021. A draft Permit reflecting the new BREF requirements is currently being reviewed. Work towards the anticipated Improvement Conditions relating to BREF began in 2022, and will continue in 2023."]
[]
[]
[]
[]
[]
[]
[]
[]
[]
["Summary of any changes to the plant or operating techniques which required a variation to the permit and a summary of the resulting environmental impact."]
["No permit variations were required during 2022."]
[]
[]
[]
[]
[]
[]
[]
[]
[]
["Summary of any other improvements made to the plant or planned to be made and a summary of the resulting environmental benefits."]
[" • 2 urea ports fitted in support of BREF compliance.\n • Replaced arch breaker and slide valve in lime silo to resolve HCl exceedance issues.\n • Continued replacement of existing lighting with LEDs.\n • FD fan 2 was fitted with a frequency converter during the 2022 outage.\n • Replaced several pumps throughout plant (trace heating, make-up, and switchgear for condensate) to prevent breakdowns.\n\nAs the contract for the operation of the site moves to its end, dilapidation work is currently in progress across the site.\nIf the O&M contract is extended, improvement work shall be planned and carried out."]

{"sheet":"Public Liasion","index":9,"n_rows":35,"n_cols":5,"rows_kept":35,"cut":false,"hidden":false,"merged":[[23,0,24,1],[23,2,24,9],[25,0,26,1],[25,2,26,9],[28,0,28,9],[17,0,18,1],[17,2,18,9],[19,0,20,1],[19,2,20,9],[21,0,22,1],[21,2,22,9],[16,0,16,1],[16,2,16,9],[5,0,5,1],[5,2,5,9],[6,0,7,1],[6,2,7,9],[8,0,9,1],[8,2,9,9],[10,0,11,1],[10,2,11,9],[12,0,13,1],[12,2,13,9],[15,0,15,9]]}
[{"$f":"+'Cover Page'!$B$29","v":"Annual Performance Report 2022"},null,null,null,{"$f":"+'Cover Page'!$B$33","v":"Wolverhampton Energy from Waste Facility"}]
[]
["Details of Public & Stakeholder Liasion"]
[]
["Summary of events held during the reporting year."]
["Date",null,"Description"]
["Jan 22 - Oct 22",null,"MESE conducted monthly meetings with its core stakeholders in order discuss operational, health and safety, and environmental performance."]
[]
["Nov 22- Dec 22",null,"NMOL conducted monthly meetings with its core stakeholders in order discuss operational, health and safety, and environmental performance."]
[]
[]
[]
[]
[]
[]
["List of events planned for next year"]
["Date",null,"Description"]
[2023,null,"NMOL will continue to meet with its core stakeholders on a monthly basis."]
[]
[2023,null,"NMOL to launch company website."]
[]
[]
[]
[]
[]
[]
[]
[]
["If you wish to be involved in the public liasion programme, please contact _________________"]
[]
[]
[]
[]
[]
[null,"North Midlands Operations Limited"]

{"sheet":"Residue Quality ","index":10,"n_rows":36,"n_cols":6,"rows_kept":36,"cut":false,"hidden":false,"merged":[[35,0,40,6],[32,3,32,4],[34,0,34,6],[27,0,28,1],[29,0,29,1],[30,0,30,1],[31,0,31,1],[32,0,32,1],[29,3,29,4],[30,3,30,4],[29,5,29,6],[30,5,30,6],[31,5,31,6],[32,5,32,6],[20,0,21,1],[20,2,21,6],[22,0,23,1],[22,2,23,6],[31,3,31,4],[27,2,28,2],[28,3,28,4],[28,5,28,6],[27,3,27,6],[26,0,26,6],[5,0,6,6],[7,0,8,6],[9,0,10,6],[14,0,15,1],[14,2,15,6],[16,0,17,1],[16,2,17,6],[18,0,19,1],[18,2,19,6],[12,0,12,6],[13,0,13,1],[13,2,13,6]]}
[{"$f":"+'Cover Page'!$B$29","v":"Annual Performance Report 2022"},null,null,null,{"$f":"+'Cover Page'!$B$33","v":"Wolverhampton Energy from Waste Facility"}]
[]
["Residue Quality Monitoring Requirements"]
[]
["Summary of monitoring undertaken and compliance"]
["Monitoring has been undertaken in line with the permit, quarterly for APC and monthly for IBA."]
[]
[]
[]
[]
[]
[]
["Commentary on any specific events"]
["Date & Event",null,"Description"]
[]
[]
[]
[]
[]
[]
[]
[]
[]
[]
[]
[]
["Residue Quality Monitoring Results"]
["Parameter (unit) ",null,"Limit","Normal Operation "]
[null,null,null,"Bottom ash  ",null,"APC Residues"]
["Loss on Ignition (average %)",null,"<5%",5.3650000000000002]
["Total Organic Carbon (average %)",null,"<3%",0.61499999999999999]
["No. of Assessments Undertaken",null,"---",2,null,4]
["No. of Hazardous Results",null,"---",0]
[]
["Comments :"]
["Results for December, though undertaken were not available at the time of reporting"]

{"sheet":"Water","index":11,"n_rows":35,"n_cols":10,"rows_kept":35,"cut":false,"hidden":false,"merged":[[29,3,29,5],[30,3,30,5],[31,3,31,5],[32,3,32,5],[26,0,26,2],[26,3,26,5],[27,0,27,2],[27,3,27,5],[28,0,28,2],[28,3,28,5],[23,0,23,2],[23,3,23,5],[24,0,24,2],[24,3,24,5],[25,0,25,2],[25,3,25,5],[21,0,21,9],[22,0,22,2],[22,3,22,5],[14,0,15,1],[14,2,15,9],[16,0,17,1],[16,2,17,9],[18,0,19,1],[18,2,19,9],[5,0,6,9],[7,0,8,9],[9,0,10,9],[12,0,12,9],[13,0,13,1],[13,2,13,9]]}
[{"$f":"+'Cover Page'!$B$29","v":"Annual Performance Report 2022"},null,null,null,{"$f":"+'Cover Page'!$B$33","v":"Wolverhampton Energy from Waste Facility"}]
[]
["Emissions to Water"]
[]
["Summary of monitoring undertaken and compliance"]
["No monitoring required by the permit, however monitoring on emisions to sewer is undertaken annually"]
[]
["Results provided in mg/l"]
[]
[]
[]
[]
["Commentary on any specific events"]
["Date & Event",null,"Description"]
[]
[]
[]
[]
[]
[]
[]
["Emissions to Water / Sewer"]
["Parameter",null,null,"Monitoring Frequency",null,null,"Limit","Target","Max.","Average"]
["pH",null,null,"Annual",null,null,"N/A","N/A",7.8]
["SS",null,null,"Annual",null,null,"N/A","N/A",4]
["Cd",null,null,"Annual",null,null,"N/A","N/A",2.2000000000000001E-4]
["Cr",null,null,"Annual",null,null,"N/A","N/A",5.9000000000000003E-4]
["Cu",null,null,"Annual",null,null,"N/A","N/A",4.7999999999999996E-3]
["Pb",null,null,"Annual",null,null,"N/A","N/A",8.0000000000000004E-4]
["Ni",null,null,"Annual",null,null,"N/A","N/A",4.1999999999999997E-3]
["Zn",null,null,"Annual",null,null,"N/A","N/A",2.1000000000000001E-2]
["P",null,null,"Annual",null,null,"N/A","N/A",0.46]
["COD",null,null,"Annual",null,null,"N/A","N/A","<11"]
[]
[null,"North Midlands Operations Limited"]

{"sheet":"Air (periodic)","index":12,"n_rows":39,"n_cols":13,"rows_kept":39,"cut":false,"hidden":false,"merged":[[18,3,18,4],[27,3,27,4],[33,3,33,4],[19,3,19,4],[20,3,20,4],[21,3,21,4],[22,3,22,4],[23,3,23,4],[24,3,24,4],[31,3,31,4],[25,3,25,4],[26,3,26,4],[28,3,28,4],[13,3,13,4],[14,3,14,4],[15,3,15,4],[16,3,16,4],[17,3,17,4],[38,0,38,9],[19,0,19,1],[20,0,20,1],[21,0,21,1],[34,3,34,4],[35,3,35,4],[33,0,33,1],[34,0,34,1],[35,0,35,1],[36,0,36,1],[24,0,24,1],[32,3,32,4],[39,0,40,9],[25,0,25,1],[26,0,26,1],[22,0,22,1],[23,0,23,1],[37,0,37,1],[27,0,27,1],[28,0,28,1],[29,0,29,1],[30,0,30,1],[31,0,31,1],[32,0,32,1],[37,3,37,4],[29,3,29,4],[30,3,30,4],[36,3,36,4],[16,0,16,1],[17,0,17,1],[18,0,18,1],[13,0,13,1],[14,0,14,1],[15,0,15,1],[12,0,12,1],[11,3,11,4],[12,3,12,4],[9,0,10,1],[9,5,9,9],[9,3,10,4],[9,2,10,2],[5,12,8,15],[9,12,11,15],[8,0,8,9],[5,0,6,9],[11,0,11,1]]}
[{"$f":"+'Cover Page'!$B$29","v":"Annual Performance Report 2022"},null,null,null,{"$f":"+'Cover Page'!$B$33","v":"Wolverhampton Energy from Waste Facility"}]
[]
["Emissions to Air (periodically monitored)"]
[]
["Summary of monitoring undertaken, standards used and compliance",null,null,null,null,null,null,null,null,null,null,null,"Notes:"]
[null,null,null,null,null,null,null,null,null,null,null,null,"Template may require adjustment for any bespoke monitoring requirements of permit. "]
[]
[]
["Results of emissions to air that are periodically monitored"]
["Substance",null,"Ref. Period","Emission Limit Value",null,"Average",null,null,null,null,null,null,"User to add additional tables as necessary, depending on whether quarterly or bi-annual reporting is required for the compliance year"]
[null,null,null,null,null,"A1","A2"]
["Hydrogen fluoride",null,"1 hr","2 mg/m3",null,0.13500000000000001,6.9699999999999998E-2]
["Cd and Th and their compounds",null,"6-8hrs","0.05 mg/m3",null,6.0000000000000001E-3,2.1000000000000001E-2]
["Hg and its compounds",null,"6-8hrs","0.05 mg/m3",null,1E-3,2E-3]
["Sb, As, Pb, Cr, Co, Cu, Mn, Ni, V and their compounds",null,"6-8hrs","0.5 mg/m3",null,3.6999999999999998E-2,4.2000000000000003E-2]
["Dioxins & Furans (I-TEQ)",null,"6-8hrs","0.1 ng/m3",null,2.7E-2,0.04]
["PCBs (WHO-TEQ Humans / Mammals)",null,"6-8hrs","None set ng/m3",null,2E-3,2E-3]
["PCBs (WHO-TEQ Fish)",null,"6-8hrs","None set ng/m3",null,1E-4,1E-4]
["PCBs (WHO-TEQ Birds)",null,"6-8hrs","None set ng/m3",null,4.0000000000000001E-3,5.0000000000000001E-3]
["Dioxins & Furans (WHO-TEQ Humans / Mammals)",null,"6-8hrs","None set ng/m3",null,2.5999999999999999E-2,3.6999999999999998E-2]
["Dioxins & Furans (WHO-TEQ Fish)",null,"6-8hrs","None set ng/m3",null,2.8000000000000001E-2,4.2999999999999997E-2]
["Dioxins & Furans (WHO-TEQ Birds)",null,"6-8hrs","None set ng/m3",null,4.5999999999999999E-2,7.8E-2]
["Anthanthrene",null,"6-8hrs","None set µg/m3",null,"<0.007","<0.007"]
["Benzo(a)anthracene",null,"6-8hrs","None set µg/m3",null,"<0.007","<0.007"]
["Benzo(a)pyrene",null,"6-8hrs","None set µg/m3",null,0.01,"<0.007"]
["Benzo(b)fluoranthene",null,"6-8hrs","None set µg/m3",null,0.01,"<0.007"]
["Benzo(b)naptho(2,1-d) thiophene",null,"6-8hrs","None set µg/m3",null,"<0.007","<0.007"]
["Benzo(c)phenanthrene",null,"6-8hrs","None set µg/m3",null,"<0.007","<0.007"]
["Benzo(ghi)perylene",null,"6-8hrs","None set µg/m3",null,0.03,"<0.007"]
["Benzo(k)fluoranthene",null,"6-8hrs","None set µg/m3",null,"<0.007","<0.007"]
["Cholanthrene",null,"6-8hrs","None set µg/m3",null,"<0.007","<0.007"]
["Chrysene",null,"6-8hrs","None set µg/m3",null,0.01,"<0.007"]
["Cyclopenta(cd)pyrene",null,"6-8hrs","None set µg/m3",null,0.04,"<0.007"]
["Dibenzo(ai)pyrene",null,"6-8hrs","None set µg/m3",null,"<0.007","<0.007"]
["Dibenzo(ah)anthracene",null,"6-8hrs","None set µg/m3",null,"<0.007","<0.007"]
["Fluoranthene",null,"6-8hrs","None set µg/m3",null,0.21,0.06]
["Indeno(123-cd) pyrene",null,"6-8hrs","None set µg/m3",null,0.01,"<0.007"]
["Naphthalene",null,"6-8hrs","None set µg/m3",null,0.90500000000000003,1.51]
["Comments :"]

{"sheet":"Air (CEMS)","index":13,"n_rows":35,"n_cols":16,"rows_kept":35,"cut":false,"hidden":false,"merged":[[26,0,26,12],[28,0,29,12],[13,0,14,0],[5,0,6,12],[7,0,8,12],[10,0,10,12],[11,0,12,0],[11,2,12,2],[11,1,12,1],[11,3,11,4],[11,5,11,6],[11,7,11,8],[11,9,11,10],[11,11,11,12]]}
[{"$f":"+'Cover Page'!$B$29","v":"Annual Performance Report 2022"},null,null,null,null,null,null,null,{"$f":"+'Cover Page'!$B$33","v":"Wolverhampton Energy from Waste Facility"}]
[]
["Emissions to Air (continously monitored)"]
[null,null,null,null,null,null,null,null,null,null,null,null,null,null,null,"Notes:"]
["Summary of monitoring undertaken, standards used and compliance",null,null,null,null,null,null,null,null,null,null,null,null,null,null,"Template may require adjustment for any bespoke monitoring requirements of permit"]
[null,null,null,null,null,null,null,null,null,null,null,null,null,null,null,"Report to 2 decimal places, i.e. xx.xx%"]
[]
[]
[]
[]
["Results of emissions to air that are continuously monitored (maximum and average values for each line)"]
["Substance","Reference Period","Emission Limit Value","A1",null,"A2"]
[null,null,null,"Max.","Avg.","Max.","Avg."]
["Oxides of nitrogen","Daily mean","200 mg/m3 ",{"$f":"NOx!O19","v":190},{"$f":"NOx!N19","v":184.47782458481382},{"$f":"NOx!O34","v":198},{"$f":"NOx!N34","v":179.57853849107883}]
[null,"½ hourly mean","400 mg/m3 ",{"$f":"NOx!M19","v":379},{"$f":"NOx!L19","v":183.41666666666666},{"$f":"NOx!M34","v":324},{"$f":"NOx!L34","v":179.5}]
["Particulates","Daily mean","10 mg/m3",{"$f":"Particulates!O19","v":4},{"$f":"Particulates!N19","v":0.69484838140752114},{"$f":"Particulates!O34","v":8},{"$f":"Particulates!N34","v":1.2738768484601819}]
[null,"½ hourly mean","30 mg/m3 ",{"$f":"Particulates!M19","v":91},{"$f":"Particulates!L19","v":0.75},{"$f":"Particulates!M34","v":17},{"$f":"Particulates!L34","v":1.4166666666666667}]
["Total Organic Carbon ","Daily mean","10 mg/m3 ",{"$f":"TOC!O19","v":2},{"$f":"TOC!N19","v":7.2668376028591067E-2},{"$f":"TOC!O34","v":4},{"$f":"TOC!N34","v":0.17623941470715665}]
[null,"½ hourly mean","20 mg/m3 ",{"$f":"TOC!M19","v":19},{"$f":"TOC!L19","v":0},{"$f":"TOC!M34","v":384},{"$f":"TOC!L34","v":8.3333333333333329E-2}]
["Hydrogen chloride ","Daily mean","10 mg/m3 ",{"$f":"HCl!O19","v":9},{"$f":"HCl!N19","v":6.2146553217789773},{"$f":"HCl!O34","v":8},{"$f":"HCl!N34","v":5.7685648804600431}]
[null,"½ hourly mean","60 mg/m3 ",{"$f":"HCl!M19","v":147},{"$f":"HCl!L19","v":6.333333333333333},{"$f":"HCl!M34","v":75},{"$f":"HCl!L34","v":5.75}]
["Sulphur dioxide","Daily mean","50 mg/m3 ",{"$f":"'SO2'!O19","v":28},{"$f":"'SO2'!N19","v":15.015232522356181},{"$f":"'SO2'!O34","v":31},{"$f":"'SO2'!N34","v":18.03774752626903}]
[null,"½ hourly mean","200 mg/m3 ",{"$f":"'SO2'!M19","v":153},{"$f":"'SO2'!L19","v":15.166666666666666},{"$f":"'SO2'!M34","v":130},{"$f":"'SO2'!L34","v":18.083333333333332}]
["Carbon monoxide ","Daily mean","50 mg/m3 ",{"$f":"'CO 95% 10 min'!Q19","v":45},{"$f":"'CO 95% 10 min'!P19","v":8.921898769637199},{"$f":"'CO 95% 10 min'!Q34","v":50},{"$f":"'CO 95% 10 min'!P34","v":7.2647665840250184}]
[null,"95%ile 10-min avg *","150 mg/m3 *",{"$f":"'CO 95% 10 min'!M19","v":82.5},{"$f":"'CO 95% 10 min'!N19","v":9.0833333333333339},{"$f":"'CO 95% 10 min'!M34","v":59.833333333333336},{"$f":"'CO 95% 10 min'!N34","v":7.666666666666667}]
[" Ammonia","Daily mean","No limit set",{"$f":"'NH3'!O19","v":8},{"$f":"'NH3'!N19","v":3.4856233869674731},{"$f":"'NH3'!O34","v":11},{"$f":"'NH3'!N34","v":1.0755045054507422}]
["* = delete or amend as appropriate"]
["Comments :"]
[]
[]
[]
[]
[]
[]
[null,"North Midlands Operations Limited"]

{"sheet":"HCl","index":14,"n_rows":48,"n_cols":17,"rows_kept":48,"cut":false,"hidden":false,"merged":[[12,16,15,18],[51,9,63,9],[66,9,78,9],[4,9,4,14],[4,1,4,3],[4,4,4,6],[48,0,51,6],[47,0,47,6],[6,9,18,9],[21,9,33,9],[36,9,48,9],[3,16,7,18],[9,16,11,18]]}
[{"$f":"+'Cover Page'!$B$29","v":"Annual Performance Report 2022"},null,null,null,{"$f":"+'Cover Page'!$B$33","v":"Wolverhampton Energy from Waste Facility"}]
[]
["Monitoring of Hydrogen Chloride emissions",null,null,"Whole Installation",null,null,"See  Notes in Cell Q3",null,null,{"$f":"+A3","v":"Monitoring of Hydrogen Chloride emissions"},null,null,null,"Per Combustion Line",null,null,"Notes:"]
[null,null,null,null,null,null,null,null,null,null,null,null,null,null,null,null,"User to add logic to complete Whole installation, Table A5:G18. From the data in Per Combustion Line, Table J6:O79, subject to No. of lines installed"]
["mg/Nm3","1/2 Hourly Reference Periods",null,null,"Daily Reference Periods"]
[{"$f":"+'Cover Page'!C39","v":2022},"1/2 hourly HCl ELV","Monthly 1/2 hourly mean","Highest 1/2 hourly maximum","Daily HCl ELV","Monthly daily mean","Highest daily maximum",null,null,{"$f":"+A6","v":2022},"mg/Nm3","Monthly 1/2 hourly mean","Monthly 1/2 hourly maximum","Monthly daily mean","Monthly daily maximum"]
["Jan",60,{"$f":"AVERAGE(L7,L22)","v":6.5},{"$f":"MAX(M7,M22)","v":41},10,{"$f":"AVERAGE(N7,N22)","v":6.650537634408602},{"$f":"MAX(O7,O22)","v":8},null,null,"A1","Jan",6,19,6.333333333333333,7]
["Feb",60,{"$f":"AVERAGE(L8,L23)","v":6},{"$f":"MAX(M8,M23)","v":71},10,{"$f":"AVERAGE(N8,N23)","v":5.8571428571428577},{"$f":"MAX(O8,O23)","v":8},null,null,null,"Feb",6,71,5.5,7]
["Mar",60,6,147,10,5.1339285714285712,8,null,null,null,"Mar",6,147,4.6428571428571432,7,null,"Whole Installation table A5:G18:"]
["Apr",60,5,62,10,5.2166666666666668,6,null,null,null,"Apr",5,62,5.4,6,null,"Mean: for 1/2 hourly and daily periods calculate mean of values across all operational combustion lines for the month"]
["May",60,5.5,44,10,5.6575682382133996,7,null,null,null,"May",6,44,6.161290322580645,7]
["Jun",60,6.5,48,10,6.5333333333333332,8,null,null,null,"Jun",7,35,7.0666666666666664,8]
["Jul",60,6.5,27,10,6.3704301075268823,8,null,null,null,"Jul",7,27,6.774193548387097,8,null,"Maximum: for 1/2 hourly and daily periods use the highest value across all operational combustion lines for the month"]
["Aug",60,6,35,10,5.95,8,null,null,null,"Aug",7,35,6.9,8]
["Sep",60,5.5,36,10,5.5166666666666666,8,null,null,null,"Sep",6,36,5.7,8]
["Oct",60,6.5,35,10,6.5097402597402603,9,null,null,null,"Oct",7,20,7.0909090909090908,9]
["Nov",60,6,28,10,6.0925925925925926,7,null,null,null,"Nov",6,23,6.1851851851851851,7]
["Dec",60,6.5,38,10,6.4107142857142856,7,null,null,null,"Dec",7,26,6.8214285714285712,7]
[null,null,null,null,null,null,null,null,null,null,"Annual",{"$f":"AVERAGE(L7:L18)","v":6.333333333333333},{"$f":"MAX(M7:M18)","v":147},{"$f":"AVERAGE(N7:N18)","v":6.2146553217789773},{"$f":"MAX(O7:O18)","v":9}]
[]
[null,null,null,null,null,null,null,null,null,{"$f":"+A6","v":2022},"mg/Nm3","Monthly 1/2 hourly mean","Monthly 1/2 hourly maximum","Monthly daily mean","Monthly daily maximum"]
[null,null,null,null,null,null,null,null,null,"A2","Jan",7,41,6.967741935483871,8]
[null,null,null,null,null,null,null,null,null,null,"Feb",6,19,6.2142857142857144,8]
[null,null,null,null,null,null,null,null,null,null,"Mar",6,75,5.625,8]
[null,null,null,null,null,null,null,null,null,null,"Apr",5,31,5.0333333333333332,6]
[null,null,null,null,null,null,null,null,null,null,"May",5,22,5.1538461538461542,7]
[null,null,null,null,null,null,null,null,null,null,"Jun",6,48,6,8]
[null,null,null,null,null,null,null,null,null,null,"Jul",6,18,5.9666666666666668,7]
[null,null,null,null,null,null,null,null,null,null,"Aug",5,21,5,7]
[null,null,null,null,null,null,null,null,null,null,"Sep",5,21,5.333333333333333,7]
[null,null,null,null,null,null,null,null,null,null,"Oct",6,35,5.9285714285714288,8]
[null,null,null,null,null,null,null,null,null,null,"Nov",6,28,6,7]
[null,null,null,null,null,null,null,null,null,null,"Dec",6,38,6,7]
[null,null,null,null,null,null,null,null,null,null,"Annual",{"$f":"AVERAGE(L22:L33)","v":5.75},{"$f":"MAX(M22:M33)","v":75},{"$f":"AVERAGE(N22:N33)","v":5.7685648804600431},{"$f":"MAX(O22:O33)","v":8}]
[null,"North Midlands Operations Limited"]
[]
[]
[]
[]
[]
[]
[]
[null,null,"01179 372 811"]
[]
[null,null,"emily.hingston@sol-environment.co.uk"]
[]
[]
["Comments :"]

{"sheet":"SO2","index":15,"n_rows":48,"n_cols":17,"rows_kept":48,"cut":false,"hidden":false,"merged":[[3,16,7,18],[9,16,11,18],[12,16,15,18],[66,9,78,9],[4,1,4,3],[4,4,4,6],[4,9,4,14],[6,9,18,9],[21,9,33,9],[36,9,48,9],[47,0,47,6],[48,0,51,6],[51,9,63,9]]}
[{"$f":"+'Cover Page'!$B$29","v":"Annual Performance Report 2022"},null,null,null,{"$f":"+'Cover Page'!$B$33","v":"Wolverhampton Energy from Waste Facility"}]
[]
["Monitoring of Sulphur dioxide emissions",null,null,"Whole Installation",null,null,"See  Notes in Cell Q3",null,null,{"$f":"+A3","v":"Monitoring of Sulphur dioxide emissions"},null,null,null,"Per Combustion Line",null,null,"Notes:"]
[null,null,null,null,null,null,null,null,null,null,null,null,null,null,null,null,"User to add logic to complete Whole installation, Table A5:G18. From the data in Per Combustion Line, Table J6:O79, subject to No. of lines installed"]
["mg/Nm3","1/2 Hourly Reference Periods",null,null,"Daily Reference Periods"]
[{"$f":"+'Cover Page'!C39","v":2022},"1/2 hourly SO2 ELV","Monthly 1/2 hourly mean","Highest 1/2 hourly maximum","Daily SO2 ELV","Monthly daily mean","Highest daily maximum",null,null,{"$f":"+A6","v":2022},"mg/Nm3","Monthly 1/2 hourly mean","Monthly 1/2 hourly maximum","Monthly daily mean","Monthly daily maximum"]
["Jan",200,{"$f":"AVERAGE(L7,L22)","v":15.5},{"$f":"MAX(M7,M22)","v":68},50,{"$f":"AVERAGE(N7,N22)","v":15.349462365591396},{"$f":"MAX(O7,O22)","v":26},null,null,"A1","Jan",15,68,14.666666666666666,26]
["Feb",200,{"$f":"AVERAGE(L8,L23)","v":16.5},{"$f":"MAX(M8,M23)","v":76},50,{"$f":"AVERAGE(N8,N23)","v":16.696428571428569},{"$f":"MAX(O8,O23)","v":23},null,null,null,"Feb",15,76,15.357142857142858,23]
["Mar",200,18.5,101,50,17.99404761904762,28,null,null,null,"Mar",15,98,14.321428571428571,28,null,"Whole Installation table A5:G18:"]
["Apr",200,19.5,130,50,19.566666666666666,27,null,null,null,"Apr",18,102,18.066666666666666,26,null,"Mean: for 1/2 hourly and daily periods calculate mean of values across all operational combustion lines for the month"]
["May",200,17.5,132,50,17.598635235732011,30,null,null,null,"May",16,132,15.774193548387096,21]
["Jun",200,17,94,50,16.716666666666669,29,null,null,null,"Jun",13,65,12.766666666666667,19]
["Jul",200,13,153,50,13.130645161290325,25,null,null,null,"Jul",9,153,9.1612903225806459,16,null,"Maximum: for 1/2 hourly and daily periods use the highest value across all operational combustion lines for the month"]
["Aug",200,13.5,97,50,13.456410256410257,27,null,null,null,"Aug",11,76,10.566666666666666,20]
["Sep",200,14.5,96,50,15.058333333333334,26,null,null,null,"Sep",16,82,16.2,26]
["Oct",200,17.5,102,50,16.504870129870131,27,null,null,null,"Oct",18,102,17.545454545454547,25]
["Nov",200,17,110,50,17,24,null,null,null,"Nov",17,80,17.185185185185187,23]
["Dec",200,19.5,98,50,19.245714285714286,31,null,null,null,"Dec",19,84,18.571428571428573,25]
[null,null,null,null,null,null,null,null,null,null,"Annual",{"$f":"AVERAGE(L7:L18)","v":15.166666666666666},{"$f":"MAX(M7:M18)","v":153},{"$f":"AVERAGE(N7:N18)","v":15.015232522356181},{"$f":"MAX(O7:O18)","v":28}]
[]
[null,null,null,null,null,null,null,null,null,{"$f":"+A6","v":2022},"mg/Nm3","Monthly 1/2 hourly mean","Monthly 1/2 hourly maximum","Monthly daily mean","Monthly daily maximum"]
[null,null,null,null,null,null,null,null,null,"A2","Jan",16,64,16.032258064516128,26]
[null,null,null,null,null,null,null,null,null,null,"Feb",18,74,18.035714285714285,23]
[null,null,null,null,null,null,null,null,null,null,"Mar",22,101,21.666666666666668,27]
[null,null,null,null,null,null,null,null,null,null,"Apr",21,130,21.066666666666666,27]
[null,null,null,null,null,null,null,null,null,null,"May",19,129,19.423076923076923,30]
[null,null,null,null,null,null,null,null,null,null,"Jun",21,94,20.666666666666668,29]
[null,null,null,null,null,null,null,null,null,null,"Jul",17,106,17.100000000000001,25]
[null,null,null,null,null,null,null,null,null,null,"Aug",16,97,16.346153846153847,27]
[null,null,null,null,null,null,null,null,null,null,"Sep",13,96,13.916666666666666,23]
[null,null,null,null,null,null,null,null,null,null,"Oct",17,77,15.464285714285714,27]
[null,null,null,null,null,null,null,null,null,null,"Nov",17,110,16.814814814814813,24]
[null,null,null,null,null,null,null,null,null,null,"Dec",20,98,19.920000000000002,31]
[null,null,null,null,null,null,null,null,null,null,"Annual",{"$f":"AVERAGE(L22:L33)","v":18.083333333333332},{"$f":"MAX(M22:M33)","v":130},{"$f":"AVERAGE(N22:N33)","v":18.03774752626903},{"$f":"MAX(O22:O33)","v":31}]
[null,"North Midlands Operations Limited"]
[]
[]
[]
[]
[]
[]
[]
[null,null,"01179 372 811"]
[]
[null,null,"emily.hingston@sol-environment.co.uk"]
[]
[]
["Comments :"]

{"sheet":"NOx","index":16,"n_rows":48,"n_cols":17,"rows_kept":48,"cut":false,"hidden":false,"merged":[[3,16,7,18],[9,16,11,18],[12,16,15,18],[66,9,78,9],[4,1,4,3],[4,4,4,6],[4,9,4,14],[6,9,18,9],[21,9,33,9],[36,9,48,9],[47,0,47,6],[48,0,51,6],[51,9,63,9]]}
[{"$f":"+'Cover Page'!$B$29","v":"Annual Performance Report 2022"},null,null,null,{"$f":"+'Cover Page'!$B$33","v":"Wolverhampton Energy from Waste Facility"}]
[]
["Monitoring of Oxides of Nitrogen emissions",null,null,"Whole Installation",null,null,"See  Notes in Cell Q3",null,null,{"$f":"+A3","v":"Monitoring of Oxides of Nitrogen emissions"},null,null,null,"Per Combustion Line",null,null,"Notes:"]
[null,null,null,null,null,null,null,null,null,null,null,null,null,null,null,null,"User to add logic to complete Whole installation, Table A5:G18. From the data in Per Combustion Line, Table J6:O79, subject to No. of lines installed"]
["mg/Nm3","1/2 Hourly Reference Periods",null,null,"Daily Reference Periods"]
[{"$f":"+'Cover Page'!C39","v":2022},"1/2 hourly NOx ELV","Monthly 1/2 hourly mean","Highest 1/2 hourly maximum","Daily NOx ELV","Monthly daily mean","Highest daily maximum",null,null,{"$f":"+A6","v":2022},"mg/Nm3","Monthly 1/2 hourly mean","Monthly 1/2 hourly maximum","Monthly daily mean","Monthly daily maximum"]
["Jan",400,{"$f":"AVERAGE(L7,L22)","v":184},{"$f":"MAX(M7,M22)","v":262},200,{"$f":"AVERAGE(N7,N22)","v":184.37514934289129},{"$f":"MAX(O22,O7)","v":191},null,null,"A1","Jan",183,234,183.81481481481481,187]
["Feb",400,{"$f":"AVERAGE(L8,L23)","v":184},{"$f":"MAX(M8,M23)","v":292},200,{"$f":"AVERAGE(N8,N23)","v":184.26785714285714},{"$f":"MAX(O23,O8)","v":189},null,null,null,"Feb",183,258,183.25,188]
["Mar",400,185,336,200,185.09821428571428,188,null,null,null,"Mar",186,336,185.57142857142858,188,null,"Whole Installation table A5:G18:"]
["Apr",400,185,324,200,184.95,190,null,null,null,"Apr",185,273,185.26666666666668,187,null,"Mean: for 1/2 hourly and daily periods calculate mean of values across all operational combustion lines for the month"]
["May",400,184,379,200,183.62158808933003,190,null,null,null,"May",183,379,182.93548387096774,190]
["Jun",400,185,255,200,185.16666666666669,187,null,null,null,"Jun",185,254,184.96666666666667,187]
["Jul",400,184.5,291,200,184.50752688172042,189,null,null,null,"Jul",184,291,183.54838709677421,189,null,"Maximum: for 1/2 hourly and daily periods use the highest value across all operational combustion lines for the month"]
["Aug",400,185,250,200,185.03333333333333,190,null,null,null,"Aug",185,245,185.56666666666666,190]
["Sep",400,173,247,200,177.40833333333333,187,null,null,null,"Sep",176,247,185.4,187]
["Oct",400,172,317,200,171.70292207792207,188,null,null,null,"Oct",186,314,185.22727272727272,188]
["Nov",400,175.5,305,200,177.44444444444446,198,null,null,null,"Nov",180,260,183.22222222222223,187]
["Dec",400,180.5,315,200,180.76214285714286,190,null,null,null,"Dec",185,315,184.96428571428572,187]
[null,null,null,null,null,null,null,null,null,null,"Annual",{"$f":"AVERAGE(L7:L18)","v":183.41666666666666},{"$f":"MAX(M7:M18)","v":379},{"$f":"AVERAGE(N7:N18)","v":184.47782458481382},{"$f":"MAX(O7:O18)","v":190}]
[]
[null,null,null,null,null,null,null,null,null,{"$f":"+A6","v":2022},"mg/Nm3","Monthly 1/2 hourly mean","Monthly 1/2 hourly maximum","Monthly daily mean","Monthly daily maximum"]
[null,null,null,null,null,null,null,null,null,"A2","Jan",185,262,184.93548387096774,191]
[null,null,null,null,null,null,null,null,null,null,"Feb",185,292,185.28571428571428,189]
[null,null,null,null,null,null,null,null,null,null,"Mar",184,285,184.625,187]
[null,null,null,null,null,null,null,null,null,null,"Apr",185,324,184.63333333333333,190]
[null,null,null,null,null,null,null,null,null,null,"May",185,248,184.30769230769232,189]
[null,null,null,null,null,null,null,null,null,null,"Jun",185,255,185.36666666666667,187]
[null,null,null,null,null,null,null,null,null,null,"Jul",185,262,185.46666666666667,189]
[null,null,null,null,null,null,null,null,null,null,"Aug",185,250,184.5,187]
[null,null,null,null,null,null,null,null,null,null,"Sep",170,231,169.41666666666666,185]
[null,null,null,null,null,null,null,null,null,null,"Oct",158,317,158.17857142857142,187]
[null,null,null,null,null,null,null,null,null,null,"Nov",171,305,171.66666666666666,198]
[null,null,null,null,null,null,null,null,null,null,"Dec",176,269,176.56,190]
[null,null,null,null,null,null,null,null,null,null,"Annual",{"$f":"AVERAGE(L22:L33)","v":179.5},{"$f":"MAX(M22:M33)","v":324},{"$f":"AVERAGE(N22:N33)","v":179.57853849107883},{"$f":"MAX(O22:O33)","v":198}]
[null,"North Midlands Operations Limited"]
[]
[]
[]
[]
[]
[]
[]
[null,null,"01179 372 811"]
[]
[null,null,"emily.hingston@sol-environment.co.uk"]
[]
[]
["Comments :"]

{"sheet":"TOC","index":17,"n_rows":48,"n_cols":17,"rows_kept":48,"cut":false,"hidden":false,"merged":[[3,16,7,18],[9,16,11,18],[12,16,15,18],[66,9,78,9],[4,1,4,3],[4,4,4,6],[4,9,4,14],[6,9,18,9],[21,9,33,9],[36,9,48,9],[47,0,47,6],[48,0,51,6],[51,9,63,9]]}
[{"$f":"+'Cover Page'!$B$29","v":"Annual Performance Report 2022"},null,null,null,{"$f":"+'Cover Page'!$B$33","v":"Wolverhampton Energy from Waste Facility"}]
[]
["Monitoring of Total organic carbon emissions",null,null,"Whole Installation",null,null,"See  Notes in Cell Q3",null,null,{"$f":"+A3","v":"Monitoring of Total organic carbon emissions"},null,null,null,"Per Combustion Line",null,null,"Notes:"]
[null,null,null,null,null,null,null,null,null,null,null,null,null,null,null,null,"User to add logic to complete Whole installation, Table A5:G18. From the data in Per Combustion Line, Table J6:O79, subject to No. of lines installed"]
["mg/Nm3","1/2 Hourly Reference Periods",null,null,"Daily Reference Periods"]
[{"$f":"+'Cover Page'!C39","v":2022},"1/2 hourly TOC ELV","Monthly 1/2 hourly mean","Highest 1/2 hourly maximum","Daily TOC ELV","Monthly daily mean","Highest daily maximum",null,null,{"$f":"+A6","v":2022},"mg/Nm3","Monthly 1/2 hourly mean","Monthly 1/2 hourly maximum","Monthly daily mean","Monthly daily maximum"]
["Jan",20,{"$f":"AVERAGE(L7,L22)","v":0},{"$f":"MAX(M7,M22)","v":11},10,{"$f":"AVERAGE(N7,N22)","v":0.28136200716845877},{"$f":"MAX(O7,O22)","v":1},null,null,"A1","Jan",0,11,0.1111111111111111,1]
["Feb",20,{"$f":"AVERAGE(L8,L23)","v":0},{"$f":"MAX(M8,M23)","v":7},10,{"$f":"AVERAGE(N8,N23)","v":0.14285714285714285},{"$f":"MAX(O8,O23)","v":2},null,null,null,"Feb",0,3,0.25,2]
["Mar",20,0,6,10,0,0,null,null,null,"Mar",0,2,0,0,null,"Whole Installation table A5:G18:"]
["Apr",20,0,4,10,6.6666666666666666E-2,2,null,null,null,"Apr",0,1,0,0,null,"Mean: for 1/2 hourly and daily periods calculate mean of values across all operational combustion lines for the month"]
["May",20,0,18,10,0,0,null,null,null,"May",0,0,0,0]
["Jun",20,0,4,10,0,0,null,null,null,"Jun",0,1,0,0]
["Jul",20,0,15,10,0.17849462365591398,1,null,null,null,"Jul",0,6,0.29032258064516131,1,null,"Maximum: for 1/2 hourly and daily periods use the highest value across all operational combustion lines for the month"]
["Aug",20,0,15,10,0.1294871794871795,1,null,null,null,"Aug",0,15,6.6666666666666666E-2,1]
["Sep",20,0,12,10,4.1666666666666664E-2,1,null,null,null,"Sep",0,4,0,0]
["Oct",20,0,384,10,0.11201298701298701,4,null,null,null,"Oct",0,19,4.5454545454545456E-2,1]
["Nov",20,0,50,10,0.18518518518518517,1,null,null,null,"Nov",0,11,3.7037037037037035E-2,1]
["Dec",20,0.5,24,10,0.35571428571428571,1,null,null,null,"Dec",0,18,7.1428571428571425E-2,1]
[null,null,null,null,null,null,null,null,null,null,"Annual",{"$f":"AVERAGE(L7:L18)","v":0},{"$f":"MAX(M7:M18)","v":19},{"$f":"AVERAGE(N7:N18)","v":7.2668376028591067E-2},{"$f":"MAX(O7:O18)","v":2}]
[]
[null,null,null,null,null,null,null,null,null,{"$f":"+A6","v":2022},"mg/Nm3","Monthly 1/2 hourly mean","Monthly 1/2 hourly maximum","Monthly daily mean","Monthly daily maximum"]
[null,null,null,null,null,null,null,null,null,"A2","Jan",0,4,0.45161290322580644,1]
[null,null,null,null,null,null,null,null,null,null,"Feb",0,7,3.5714285714285712E-2,1]
[null,null,null,null,null,null,null,null,null,null,"Mar",0,6,0,0]
[null,null,null,null,null,null,null,null,null,null,"Apr",0,4,0.13333333333333333,2]
[null,null,null,null,null,null,null,null,null,null,"May",0,18,0,0]
[null,null,null,null,null,null,null,null,null,null,"Jun",0,4,0,0]
[null,null,null,null,null,null,null,null,null,null,"Jul",0,15,6.6666666666666666E-2,1]
[null,null,null,null,null,null,null,null,null,null,"Aug",0,6,0.19230769230769232,1]
[null,null,null,null,null,null,null,null,null,null,"Sep",0,12,8.3333333333333329E-2,1]
[null,null,null,null,null,null,null,null,null,null,"Oct",0,384,0.17857142857142858,4]
[null,null,null,null,null,null,null,null,null,null,"Nov",0,50,0.33333333333333331,1]
[null,null,null,null,null,null,null,null,null,null,"Dec",1,24,0.64,1]
[null,null,null,null,null,null,null,null,null,null,"Annual",{"$f":"AVERAGE(L22:L33)","v":8.3333333333333329E-2},{"$f":"MAX(M22:M33)","v":384},{"$f":"AVERAGE(N22:N33)","v":0.17623941470715665},{"$f":"MAX(O22:O33)","v":4}]
[null,"North Midlands Operations Limited"]
[]
[]
[]
[]
[]
[]
[]
[null,null,"01179 372 811"]
[]
[null,null,"emily.hingston@sol-environment.co.uk"]
[]
[]
["Comments :"]

{"sheet":"Particulates","index":18,"n_rows":48,"n_cols":17,"rows_kept":48,"cut":false,"hidden":false,"merged":[[3,16,7,18],[9,16,11,18],[12,16,15,18],[66,9,78,9],[4,1,4,3],[4,4,4,6],[4,9,4,14],[6,9,18,9],[21,9,33,9],[36,9,48,9],[47,0,47,6],[48,0,51,6],[51,9,63,9]]}
[{"$f":"+'Cover Page'!$B$29","v":"Annual Performance Report 2022"},null,null,null,{"$f":"+'Cover Page'!$B$33","v":"Wolverhampton Energy from Waste Facility"}]
[]
["Monitoring of Particulate matter emissions",null,null,"Whole Installation",null,null,"See  Notes in Cell Q3",null,null,{"$f":"+A3","v":"Monitoring of Particulate matter emissions"},null,null,null,"Per Combustion Line",null,null,"Notes:"]
[null,null,null,null,null,null,null,null,null,null,null,null,null,null,null,null,"User to add logic to complete Whole installation, Table A5:G18. From the data in Per Combustion Line, Table J6:O79, subject to No. of lines installed"]
["mg/Nm3","1/2 Hourly Reference Periods",null,null,"Daily Reference Periods"]
[{"$f":"+'Cover Page'!C39","v":2022},"1/2 hourly PM ELV","Monthly 1/2 hourly mean","Highest 1/2 hourly maximum","Daily PM ELV","Monthly daily mean","Highest daily maximum",null,null,{"$f":"+A6","v":2022},"mg/Nm3","Monthly 1/2 hourly mean","Monthly 1/2 hourly maximum","Monthly daily mean","Monthly daily maximum"]
["Jan",30,{"$f":"AVERAGE(L7,L22)","v":1},{"$f":"MAX(M7,M22)","v":3},10,{"$f":"AVERAGE(N7,N22)","v":1.0925925925925926},{"$f":"MAX(O7,O22)","v":2},null,null,"A1","Jan",1,3,1.1851851851851851,2]
["Feb",30,{"$f":"AVERAGE(L8,L23)","v":0.5},{"$f":"MAX(M8,M23)","v":4},10,{"$f":"AVERAGE(N8,N23)","v":0.9642857142857143},{"$f":"MAX(O8,O23)","v":4},null,null,null,"Feb",1,4,1.5,4]
["Mar",30,1,4,10,1.0505952380952381,3,null,null,null,"Mar",1,4,1.1428571428571428,3,null,"Whole Installation table A5:G18:"]
["Apr",30,2,8,10,2.3333333333333335,6,null,null,null,"Apr",1,3,1.3,2,null,"Mean: for 1/2 hourly and daily periods calculate mean of values across all operational combustion lines for the month"]
["May",30,2,4,10,1.8418114143920596,3,null,null,null,"May",2,4,1.6451612903225807,3]
["Jun",30,1.5,91,10,1.4166666666666667,3,null,null,null,"Jun",1,91,0.76666666666666672,3]
["Jul",30,1,15,10,1.1301075268817204,8,null,null,null,"Jul",0,1,0.19354838709677419,1,null,"Maximum: for 1/2 hourly and daily periods use the highest value across all operational combustion lines for the month"]
["Aug",30,1.5,7,10,1.0051282051282051,3,null,null,null,"Aug",1,6,0.43333333333333335,1]
["Sep",30,1,4,10,0.17499999999999999,1,null,null,null,"Sep",1,4,0.1,1]
["Oct",30,0.5,7,10,0.26785714285714285,1,null,null,null,"Oct",0,2,0,0]
["Nov",30,0.5,2,10,0.25925925925925924,1,null,null,null,"Nov",0,1,0,0]
["Dec",30,0.5,17,10,0.27571428571428569,2,null,null,null,"Dec",0,4,7.1428571428571425E-2,1]
[null,null,null,null,null,null,null,null,null,null,"Annual",{"$f":"AVERAGE(L7:L18)","v":0.75},{"$f":"MAX(M7:M18)","v":91},{"$f":"AVERAGE(N7:N18)","v":0.69484838140752114},{"$f":"MAX(O7:O18)","v":4}]
[]
[null,null,null,null,null,null,null,null,null,{"$f":"+A6","v":2022},"mg/Nm3","Monthly 1/2 hourly mean","Monthly 1/2 hourly maximum","Monthly daily mean","Monthly daily maximum"]
[null,null,null,null,null,null,null,null,null,"A2","Jan",1,2,1,1]
[null,null,null,null,null,null,null,null,null,null,"Feb",0,1,0.42857142857142855,1]
[null,null,null,null,null,null,null,null,null,null,"Mar",1,3,0.95833333333333337,2]
[null,null,null,null,null,null,null,null,null,null,"Apr",3,8,3.3666666666666667,6]
[null,null,null,null,null,null,null,null,null,null,"May",2,4,2.0384615384615383,3]
[null,null,null,null,null,null,null,null,null,null,"Jun",2,6,2.0666666666666669,3]
[null,null,null,null,null,null,null,null,null,null,"Jul",2,15,2.0666666666666669,8]
[null,null,null,null,null,null,null,null,null,null,"Aug",2,7,1.5769230769230769,3]
[null,null,null,null,null,null,null,null,null,null,"Sep",1,2,0.25,1]
[null,null,null,null,null,null,null,null,null,null,"Oct",1,7,0.5357142857142857,1]
[null,null,null,null,null,null,null,null,null,null,"Nov",1,2,0.51851851851851849,1]
[null,null,null,null,null,null,null,null,null,null,"Dec",1,17,0.48,2]
[null,null,null,null,null,null,null,null,null,null,"Annual",{"$f":"AVERAGE(L22:L33)","v":1.4166666666666667},{"$f":"MAX(M22:M33)","v":17},{"$f":"AVERAGE(N22:N33)","v":1.2738768484601819},{"$f":"MAX(O22:O33)","v":8}]
[null,"North Midlands Operations Limited"]
[]
[]
[]
[]
[]
[]
[]
[null,null,"01179 372 811"]
[]
[null,null,"emily.hingston@sol-environment.co.uk"]
[]
[]
["Comments :"]

{"sheet":"CO 95% 10 min","index":19,"n_rows":49,"n_cols":19,"rows_kept":49,"cut":false,"hidden":false,"merged":[[3,18,7,20],[9,18,11,20],[12,18,15,20],[66,10,78,10],[4,1,4,4],[4,5,4,7],[4,10,4,16],[6,10,18,10],[21,10,33,10],[36,10,48,10],[47,0,47,7],[48,0,51,7],[51,10,63,10]]}
[{"$f":"+'Cover Page'!$B$29","v":"Annual Performance Report 2022"},null,null,null,{"$f":"+'Cover Page'!$B$33","v":"Wolverhampton Energy from Waste Facility"}]
[]
["Monitoring of Carbon Monoxide (10-minute avg)",null,null,null,"Whole Installation",null,null,"See  Notes in Cell S3",null,{"$f":"+A3","v":"Monitoring of Carbon Monoxide (10-minute avg)"},null,null,null,null,"Per Combustion Line",null,"Notes:",null,"Notes:"]
[null,null,null,null,null,null,null,null,null,null,null,null,null,null,null,null,null,null,"User to add logic to complete Whole installation, Table A5:H18. From the data in Per Combustion Line, Table K6:Q79, subject to No. of lines installed"]
["mg/Nm3","10-minute Reference Periods",null,null,null,"Daily Reference Periods"]
[{"$f":"+'Cover Page'!C39","v":2022},"95%ile 10-min avg CO ELV","95%ile 10-min avg maximum","Monthly CO 10-min avg mean","10-min avg maximum","Daily CO ELV","Monthly daily mean","Highest daily maximum",null,null,{"$f":"+A6","v":2022},"mg/Nm3","95%ile 10-min avg maximum","Monthly CO 10-min avg mean","10-min avg maximum","Monthly daily mean","Monthly daily maximum"]
["Jan",150,{"$f":"MAX(M7,M22)","v":39},{"$f":"AVERAGE(N7,N22)","v":9.5},{"$f":"MAX(O7,O22)","v":21},50,{"$f":"AVERAGE(P7,P22)","v":9.712664277180405},{"$f":"MAX(Q7,Q22)","v":21},null,null,"A1","Jan",39,12,21,12.296296296296296,21]
["Feb",{"$f":"+B7","v":150},{"$f":"MAX(M8,M23)","v":52},{"$f":"AVERAGE(N8,N23)","v":7.5},{"$f":"MAX(O8,O23)","v":18},{"$f":"+F7","v":50},{"$f":"AVERAGE(P8,P23)","v":7.5535714285714288},{"$f":"MAX(Q8,Q23)","v":18},null,null,null,"Feb",28,9,18,8.8571428571428577,18]
["Mar",{"$f":"+B8","v":150},88,7,24,{"$f":"+F8","v":50},6.9178571428571427,24,null,null,null,"Mar",63,8,14,7.8,17,null,"Whole Installation table A5:H18:"]
["Apr",150,33,6,12,50,6.05,12,null,null,null,"Apr",33,6,12,6.333333333333333,12,null,"Mean: for 10-min and daily periods use average of all operational combustion lines."]
["May",150,51,5.5,14,50,5.5471464019851116,14,null,null,null,"May",51,7,14,6.709677419354839,14]
["Jun",150,31,4.5,11,50,4.158620689655173,11,null,null,null,"Jun",22,4,11,3.8,11]
["Jul",150,171,5.5,33,50,5.5268817204301079,33,null,null,null,"Jul",171,5,33,5.387096774193548,33,null,"Maximum: for 10-min and daily periods use the highest of all operational combustion lines in any month."]
["Aug",150,48,7,14,50,6.8384615384615381,14,null,null,null,"Aug",48,8,14,7.6,14]
["Sep",150,190,12.5,36,50,10.445454545454545,20,null,null,null,"Sep",190,14,36,10.8,16]
["Oct",150,129,14.5,85,50,13.69001610305958,50,null,null,null,"Oct",129,15,45,15.565217391304348,45]
["Nov",150,194,11.5,41,50,11.238603988603989,41,null,null,null,"Nov",169,11,36,11.592592592592593,36]
["Dec",150,57,9.5,23,50,9.4407142857142858,23,null,null,null,"Dec",47,10,16,10.321428571428571,16]
[null,null,null,null,null,null,null,null,null,null,null,"Annual",{"$f":"AVERAGE(M7:M18)","v":82.5},{"$f":"AVERAGE(N7:N18)","v":9.0833333333333339},{"$f":"MAX(O7:O18)","v":45},{"$f":"AVERAGE(P7:P18)","v":8.921898769637199},{"$f":"MAX(Q7:Q18)","v":45}]
[]
[null,null,null,null,null,null,null,null,null,null,{"$f":"+A6","v":2022},"mg/Nm3","95%ile 10-min avg maximum","Monthly CO 10-min avg mean","10-min avg maximum","Monthly daily mean","Monthly daily maximum"]
[null,null,null,null,null,null,null,null,null,null,"A2","Jan",34,7,14,7.129032258064516,14]
[null,null,null,null,null,null,null,null,null,null,null,"Feb",52,6,17,6.25,17]
[null,null,null,null,null,null,null,null,null,null,null,"Mar",88,6,24,6.0357142857142856,24]
[null,null,null,null,null,null,null,null,null,null,null,"Apr",33,6,10,5.7666666666666666,10]
[null,null,null,null,null,null,null,null,null,null,null,"May",23,4,10,4.384615384615385,10]
[null,null,null,null,null,null,null,null,null,null,null,"Jun",31,5,10,4.5172413793103452,10]
[null,null,null,null,null,null,null,null,null,null,null,"Jul",23,6,10,5.666666666666667,10]
[null,null,null,null,null,null,null,null,null,null,null,"Aug",17,6,8,6.0769230769230766,8]
[null,null,null,null,null,null,null,null,null,null,null,"Sep",89,11,33,10.090909090909092,20]
[null,null,null,null,null,null,null,null,null,null,null,"Oct",77,14,85,11.814814814814815,50]
[null,null,null,null,null,null,null,null,null,null,null,"Nov",194,12,41,10.884615384615385,41]
[null,null,null,null,null,null,null,null,null,null,null,"Dec",57,9,23,8.56,23]
[null,null,null,null,null,null,null,null,null,null,null,"Annual",{"$f":"AVERAGE(M22:M33)","v":59.833333333333336},{"$f":"AVERAGE(N22:N33)","v":7.666666666666667},{"$f":"MAX(O22:O33)","v":85},{"$f":"AVERAGE(P22:P33)","v":7.2647665840250184},{"$f":"MAX(Q22:Q33)","v":50}]
[null,"North Midlands Operations Limited"]
[]
[]
[]
[]
[]
[]
[]
[null,null,"01179 372 811"]
[]
[null,null,"emily.hingston@sol-environment.co.uk"]
[]
[]
["Comments :"]
["Environment Agency explanatory note: The 10-minute average ELV is based on the “95th percentile”. In this case this means that 95% of the 10 minute averages in the relevant 24-hour period (i.e. 137) must be below 150 mg/Nm3, and 5% (i.e. 7) are allowed to be any value above 150 mg/Nm3. Whilst we expect operators to minimise CO emissions at all times, it is perfectly acceptable for the value of the maximum 10-minute average to be above 150 mg/Nm3, provided the 95th percentile ELV has been met for that period. "]

{"sheet":"NH3","index":20,"n_rows":49,"n_cols":17,"rows_kept":49,"cut":false,"hidden":false,"merged":[[3,16,7,18],[9,16,11,18],[12,16,15,18],[66,9,78,9],[4,1,4,3],[4,4,4,6],[4,9,4,14],[6,9,18,9],[21,9,33,9],[36,9,48,9],[47,0,47,6],[48,0,51,6],[51,9,63,9]]}
[{"$f":"+'Cover Page'!$B$29","v":"Annual Performance Report 2022"},null,null,null,{"$f":"+'Cover Page'!$B$33","v":"Wolverhampton Energy from Waste Facility"}]
[]
["Monitoring of Ammnonia emissions ",null,null,"Whole Installation",null,null,"See  Notes in Cell Q3",null,null,{"$f":"+A3","v":"Monitoring of Ammnonia emissions "},null,null,null,"Per Combustion Line",null,null,"Notes:"]
[null,null,null,null,null,null,null,null,null,null,null,null,null,null,null,null,"User to add logic to complete Whole installation, Table A5:G18. From the data in Per Combustion Line, Table J6:O79, subject to No. of lines installed"]
["mg/Nm3","1/2 Hourly Reference Periods",null,null,"Daily Reference Periods"]
[{"$f":"+'Cover Page'!C39","v":2022},"1/2 hourly NH3 ELV","Monthly 1/2 hourly mean","Highest 1/2 hourly maximum","Daily NH3 ELV","Monthly daily mean","Highest daily maximum",null,null,{"$f":"+A6","v":2022},"mg/Nm3","Monthly 1/2 hourly mean","Monthly 1/2 hourly maximum","Monthly daily mean","Monthly daily maximum"]
["Jan",0,{"$f":"AVERAGE(L7,L22)","v":0},{"$f":"MAX(M7,M22)","v":41},10,{"$f":"AVERAGE(N7,N22)","v":0.30227001194743131},{"$f":"MAX(O7,O22)","v":4},null,null,"A1","Jan",0,41,0.18518518518518517,2]
["Feb",{"$f":"+B7","v":0},{"$f":"AVERAGE(L8,L23)","v":2},{"$f":"MAX(M8,M23)","v":55},{"$f":"+E7","v":10},{"$f":"AVERAGE(N8,N23)","v":2},{"$f":"MAX(O8,O23)","v":8},null,null,null,"Feb",2,55,2.2857142857142856,8]
["Mar",{"$f":"+B8","v":0},2.5,48,{"$f":"+E8","v":10},2.4107142857142856,7,null,null,null,"Mar",4,48,3.5714285714285716,7,null,"Whole Installation table A5:G18:"]
["Apr",0,2.5,46,10,2.6833333333333336,5,null,null,null,"Apr",3,29,3.5,5,null,"Mean: for 1/2 hourly and daily periods calculate mean of values across all operational combustion lines for the month"]
["May",0,2,41,10,1.9236972704714639,6,null,null,null,"May",3,27,3.193548387096774,6]
["Jun",0,2,141,10,{"$f":"AVERAGE(N12,N27)","v":1.7},{"$f":"MAX(O12,O27)","v":9},null,null,null,"Jun",3,85,2.6333333333333333,5]
["Jul",0,{"$f":"AVERAGE(L13,L27)","v":2},{"$f":"MAX(M13,M27)","v":141},10,{"$f":"AVERAGE(N13,N27)","v":2.0446236559139788},{"$f":"MAX(O13,O27)","v":9},null,null,null,"Jul",3,50,3.3225806451612905,6,null,"Maximum: for 1/2 hourly and daily periods use the highest value across all operational combustion lines for the month"]
["Aug",0,2.5,24,10,2.4025641025641025,8,null,null,null,"Aug",5,24,4.7666666666666666,8]
["Sep",0,5,82,10,2.9833333333333334,8,null,null,null,"Sep",9,82,5.3,8]
["Oct",0,3.5,617,10,3.1899350649350646,8,null,null,null,"Oct",5,59,5.2727272727272725,8]
["Nov",0,3,51,10,2.9629629629629632,7,null,null,null,"Nov",4,28,4.2962962962962967,7]
["Dec",0,3,40,10,3.0300000000000002,11,null,null,null,"Dec",4,40,3.5,5]
[null,null,null,null,null,null,null,null,null,null,"Annual",{"$f":"AVERAGE(L7:L18)","v":3.75},{"$f":"MAX(M7:M18)","v":85},{"$f":"AVERAGE(N7:N18)","v":3.4856233869674731},{"$f":"MAX(O7:O18)","v":8}]
[]
[null,null,null,null,null,null,null,null,null,{"$f":"+A6","v":2022},"mg/Nm3","Monthly 1/2 hourly mean","Monthly 1/2 hourly maximum","Monthly daily mean","Monthly daily maximum"]
[null,null,null,null,null,null,null,null,null,"A2","Jan",0,29,0.41935483870967744,4]
[null,null,null,null,null,null,null,null,null,null,"Feb",2,38,1.7142857142857142,4]
[null,null,null,null,null,null,null,null,null,null,"Mar",1,37,1.25,3]
[null,null,null,null,null,null,null,null,null,null,"Apr",2,46,1.8666666666666667,5]
[null,null,null,null,null,null,null,null,null,null,"May",1,41,0.65384615384615385,3]
[null,null,null,null,null,null,null,null,null,null,"Jun",1,141,0.76666666666666672,9]
[null,null,null,null,null,null,null,null,null,null,"Jul",0,13,0.23333333333333334,1]
[null,null,null,null,null,null,null,null,null,null,"Aug",0,10,3.8461538461538464E-2,1]
[null,null,null,null,null,null,null,null,null,null,"Sep",1,7,0.66666666666666663,3]
[null,null,null,null,null,null,null,null,null,null,"Oct",2,617,1.1071428571428572,5]
[null,null,null,null,null,null,null,null,null,null,"Nov",2,51,1.6296296296296295,6]
[null,null,null,null,null,null,null,null,null,null,"Dec",2,32,2.56,11]
[null,null,null,null,null,null,null,null,null,null,"Annual",{"$f":"AVERAGE(L22:L33)","v":1.1666666666666667},{"$f":"MAX(M22:M33)","v":617},{"$f":"AVERAGE(N22:N33)","v":1.0755045054507422},{"$f":"MAX(O22:O33)","v":11}]
[null,"North Midlands Operations Limited"]
[]
[]
[]
[]
[]
[]
[]
[null,null,"01179 372 811"]
[]
[null,null,"emily.hingston@sol-environment.co.uk"]
[]
[]
["Comments :"]
["An indicated ELV value of zero in the table above means that no ammonia limit is set in the permit.  "]